Cogmind - Beta 15 @@@ ROGUE MODE // 2025.08.29 @ 18:21:42 Player: morimori Result: Escaped singularity! Performance ------------- Evolutions (9) 4500 Regions Visited (36) 7200 Robots Destroyed (421) 2105 Value Destroyed (23086) 23086 Prototype IDs (374) 7480 Alien Tech Used (14) 2800 Bonus (60937) 60937 TOTAL SCORE: 108108 Bonus ------- High Alert Combat Kills 3765 Follower Combat Kills 2329 Network Hubs Disabled 400 Met Data Miner 300 Met Zhirov 300 Met Warlord at Base 500 MAIN.C Attacked Warlord 500 Warlord Defense Kills 4368 Built Enhanced Grunts 300 Met R17 at Cetus 500 Used Core Reset Matrix 3000 Met R17 at Research 2000 Met Warlord at Research 2000 Invited to Help at Command 2000 Destroyed MAIN.C Guards 500 Met MAIN.C 5000 Destroyed MAIN.C Shell 5000 Destroyed MAIN.C 10000 Met Architect 300 Destroyed A8 300 Destroyed A6 400 Destroyed A5 500 Destroyed Architect 15000 Win 3000 Friendly Fire -1325 Cogmind --------- Core Integrity 911/1600 Matter 12/425 Energy 98/100 System Corruption 0% +Membrane Temperature Cool (0) Movement Core (50) Location Near Former Tau Ceti IV Parts ------- > --- POWER (2) -------- (None) > --- PROPULSION (6) --- (None) > --- UTILITY (14) ----- (None) > --- WEAPON (4) ------- (None) > --- INVENTORY (7) ---- Long-range Terrain Scanner Heavy Reactive Plating Thermal Barrier Advanced Hardlight Generator Sigix Broadsword Peak State ------------ > --- POWER ------------ Vortex Chain Reactor > --- PROPULSION ------- Experimental Biometal Heavy Treads Experimental Biometal Heavy Treads Advanced Heavy Siege Treads > --- UTILITY ---------- Experimental Power Amplifier Experimental Coolant Injector Huge Storage Unit Experimental Terrain Scan Processor Weapon Mount Experimental Core Analyzer Improved Armor Integrity Analyzer Precision Energy Filter Precision Energy Filter Heavy Regenerative Plating Thermal Barrier Advanced EM Shield AEGIS Remote Shield > --- WEAPON ----------- Potential Cannon Sigix Broadsword > --- INVENTORY -------- Vortex Chain Reactor Experimental Energy Well Experimental Energy Well Experimental Matter Compressor Long-range Terrain Scanner Quantum Capacitor Advanced Phase Shifter Advanced Phase Shifter Experimental Utility Shielding Heavy Reactive Plating Advanced Hardlight Generator Integrity Redistributor Enhanced Nova Cannon Enhanced Hardcell Cannon Enhanced Hardcell Cannon Hypercooled Linear Accelerator Hypercooled Linear Accelerator Graviton Cannon Graviton Cannon Enhanced Gamma Bomb Array Enhanced Gamma Bomb Array Z-bomb Delivery System [Rating: 255] Favorites ----------- Power Vortex Chain Reactor Engine Ion Engine Power Core Fission Core Reactor Vortex Chain Reactor Propulsion Aerolev Unit Treads Experimental Biometal Heavy Treads Leg Experimental Myomer Leg Wheel Compact Wheel Hover Unit Aerolev Unit Utility Improved Hacking Suite Device Precision Energy Filter Storage Huge Storage Unit Processor Experimental Terrain Scan Processor Hackware Improved Hacking Suite Protection Experimental Utility Shielding Weapon Sigix Broadsword Energy Gun Lightning Gun Energy Cannon Phase Cannon Ballistic Gun Autogun Ballistic Cannon Slug Cannon Launcher Gamma Bomb Array Special Weapon Improved Plasma Cutter Slashing Weapon Sigix Broadsword Piercing Weapon Plasma Lance Build | -11 -10 -10 -10 -8 -7 -7 -7 -7 -7 -7 -6 -6 -6 -6 -6 -6 -5 -5 -5 -5 -5 -5 -4 -4 -4 -4 -4 -3 -3 -3 -2 -2 -2 -1 -1 -1 ------- Run | Yrd Mat Min Sub Mat Fac Was Fac Low Low Dat Pro Fac Ext Cet Arc Hub Fac Was Fac Upp Upp War Pro Fac Upp Upp Zhi Pro Res Qua Res Tes Sec Acc Com Ac0 Slots Evolved 18 | . . . . 4 2 . . . . . . 2 . . . . 2 . . . . . . 2 . . . . 2 . 2 . . 2 . . Power 1 | . . . . . . . . . . . . . . . . . . . . . . . . . . . . . 1 . . . . . . . Propulsion 4 | . . . . 2 1 . . . . . . . . . . . 1 . . . . . . . . . . . . . . . . . . . Utility 11 | . . . . 2 1 . . . . . . 2 . . . . 1 . . . . . . 2 . . . . 1 . . . . 2 . . Weapon 2 | . . . . . . . . . . . . . . . . . . . . . . . . . . . . . . . 2 . . . . . Parts Attached 270 | 6 12 3 4 41 8 3 4 8 . 1 2 13 2 . 6 2 17 . 11 2 5 11 1 19 1 1 3 4 11 10 15 6 6 5 19 8 Power 24 | 1 1 2 . 3 1 . . 1 . . . 1 1 . . . 1 . . . 1 1 . 1 . . 1 . 1 1 3 1 . . 2 . Engine 10 | 1 1 2 . 3 . . . . . . . 1 . . . . . . . . 1 1 . . . . . . . . . . . . . . Core 4 | . . . . . 1 . . 1 . . . . 1 . . . 1 . . . . . . . . . . . . . . . . . . . Reactor 10 | . . . . . . . . . . . . . . . . . . . . . . . . 1 . . 1 . 1 1 3 1 . . 2 . Propulsion 79 | 2 3 1 1 16 2 2 . 1 . 1 . 3 . . 1 1 4 . 3 1 1 6 . 4 . 1 1 1 6 2 9 . 2 . 4 . Treads 10 | . . . 1 . . . . . . . . . . . . . . . . . . . . . . . . . . . 4 . 2 . 3 . Leg 22 | . . . . . . . . . . . . . . . 1 . . . . . . 1 . 4 . 1 . 1 6 2 5 . . . 1 . Wheel 18 | 2 3 1 . 12 . . . . . . . . . . . . . . . . . . . . . . . . . . . . . . . . Hover 29 | . . . . 4 2 2 . 1 . 1 . 3 . . . 1 4 . 3 1 1 5 . . . . 1 . . . . . . . . . Flight . | . . . . . . . . . . . . . . . . . . . . . . . . . . . . . . . . . . . . . Utility 100 | 1 3 . . 10 5 1 1 1 . . 2 5 . . 4 . 9 . 7 . 2 3 1 11 1 . 1 2 1 7 1 4 . 3 10 4 Device 46 | . 1 . . 4 2 1 . 1 . . 2 1 . . 2 . 1 . 2 . 2 3 1 3 . . 1 1 . 5 1 2 . 1 8 1 Storage 10 | 1 1 . . . 1 . . . . . . . . . 1 . 1 . . . . . . 1 . . . . . . . . . . 1 3 Processor 9 | . . . . 3 1 . . . . . . 1 . . . . . . 1 . . . . . . . . 1 . . . . . 2 . . Hackware 23 | . . . . . . . . . . . . 3 . . 1 . 6 . 4 . . . . 7 . . . . 1 . . 1 . . . . Protection 12 | . 1 . . 3 1 . 1 . . . . . . . . . 1 . . . . . . . 1 . . . . 2 . 1 . . 1 . Artifact . | . . . . . . . . . . . . . . . . . . . . . . . . . . . . . . . . . . . . . Weapon 67 | 2 5 . 3 12 . . 3 5 . . . 4 1 . 1 1 3 . 1 1 1 1 . 3 . . . 1 3 . 2 1 4 2 3 4 Energy Gun 7 | . . . 2 5 . . . . . . . . . . . . . . . . . . . . . . . . . . . . . . . . Energy Cannon 10 | . . . . 1 . . 1 . . . . 1 . . . . 1 . . . . . . 2 . . . . 2 . . 1 . . . 1 Ballistic Gun 21 | 2 5 . . 6 . . . 2 . . . 1 . . 1 . 1 . 1 . . . . . . . . . . . . . 1 1 . . Ballistic Cannon 10 | . . . 1 . . . 1 . . . . 1 . . . . . . . . . . . . . . . . . . . . 3 1 1 2 Launcher 12 | . . . . . . . . 2 . . . . 1 . . . 1 . . 1 1 . . . . . . 1 1 . 1 . . . 2 1 Special Weapon 2 | . . . . . . . . . . . . . . . . 1 . . . . . . . 1 . . . . . . . . . . . . Impact Weapon . | . . . . . . . . . . . . . . . . . . . . . . . . . . . . . . . . . . . . . Slashing Weapon 3 | . . . . . . . 1 . . . . 1 . . . . . . . . . . . . . . . . . . 1 . . . . . Piercing Weapon 2 | . . . . . . . . 1 . . . . . . . . . . . . . 1 . . . . . . . . . . . . . . Special Melee Weapon . | . . . . . . . . . . . . . . . . . . . . . . . . . . . . . . . . . . . . . Unidentified Prototypes 23 | . . . . 3 . . . . . . . . . . 3 . . . 1 1 . 4 . . . . 3 . . . . 1 . . 7 . Corrupted Parts 3 | . . . . . . . . . . . . . . . 1 . . . . . . 1 . . . . . 1 . . . . . . . . System Corruption 24 | . . . . . . . . . . . . . . . 7 . . . . . . 7 . . . . . 10 . . . . . . . . Parts Lost 41 | . . 2 . 21 . . . 1 . 2 . 3 . . . 1 . . 1 . 4 . . . . . . 1 . . . . . . . 5 Power 3 | . . . . 1 . . . . . . . 1 . . . . . . . . 1 . . . . . . . . . . . . . . . Propulsion 18 | . . 1 . 11 . . . . . 2 . 1 . . . . . . 1 . 2 . . . . . . . . . . . . . . . Utility 9 | . . 1 . 4 . . . 1 . . . 1 . . . 1 . . . . . . . . . . . . . . . . . . . 1 Weapon 11 | . . . . 5 . . . . . . . . . . . . . . . . 1 . . . . . . 1 . . . . . . . 4 Highest Loss Streak 7 | . . 2 . 7 . . . 1 . 2 . 1 . . . 1 . . 1 . 4 . . . . . . 1 . . . . . . . 3 To Critical Strikes . | . . . . . . . . . . . . . . . . . . . . . . . . . . . . . . . . . . . . . Average Backups 19 | 2 9 19 19 19 14 15 14 14 15 14 14 14 14 15 15 15 18 19 18 18 18 18 18 17 22 23 22 23 23 21 21 22 22 24 24 23 Power 1 | . 1 2 2 1 1 1 1 1 1 1 1 . . 1 1 1 1 1 1 1 . . 1 1 1 1 1 1 1 1 1 . . . . . Propulsion 1 | 1 3 3 4 6 3 4 3 3 3 2 1 . 1 1 1 1 2 2 1 1 . 1 2 2 3 4 3 1 1 1 1 . 1 1 . . Utility 9 | . 1 3 4 5 6 6 6 6 6 6 7 7 7 8 8 9 9 13 12 12 13 12 12 10 13 13 13 14 14 11 12 12 13 12 12 12 Weapon 5 | . 4 9 9 5 4 3 3 4 5 5 5 5 4 4 3 3 4 3 3 4 4 3 3 3 5 5 5 5 5 4 4 6 6 9 8 9 Tool/Special . | . . . . . . . . . . . . . . . . . . . . . . . . . . . . . . . . . . . . . Unused Backups 62 | . 9 1 . 3 . . 1 . . . . 1 2 1 3 1 3 1 2 . . 2 . 1 . 1 2 . 6 5 1 4 . . 10 2 Power 12 | . 2 . . 1 . . . . . . . . 2 . 1 1 1 . 1 . . . . . . . . . . . . . . . 3 . Propulsion 12 | . 3 . . 2 . . 1 . . . . . . . . . 1 1 . . . . . . . 1 . . 1 . . 1 . . 1 . Utility 21 | . . . . . . . . . . . . 1 . . 1 . . . 1 . . 1 . 1 . . 2 . 4 2 1 2 . . 4 1 Weapon 17 | . 4 1 . . . . . . . . . . . 1 1 . 1 . . . . 1 . . . . . . 1 3 . 1 . . 2 1 Tool/Special . | . . . . . . . . . . . . . . . . . . . . . . . . . . . . . . . . . . . . . Average Slot Usage (%) 90 | . 98 99 100 83 93 100 100 99 100 98 100 92 93 93 93 92 93 94 93 93 81 88 98 98 97 97 99 95 97 95 92 81 75 73 73 72 Engine 2 | . 14 14 14 8 4 . . . . . . . 5 . . . . . . . 4 5 5 . . . . . . . . . . . . . Core 1 | . . . . . 2 7 7 7 7 7 7 5 . 6 6 6 5 5 5 5 . . . . . . . . . . . . . . . . Reactor 2 | . . . . . . . . . . . . . . . . . . . . . . . . 4 5 5 5 5 6 9 8 4 4 3 2 3 Treads 3 | . . . . . . . . . . . . . . . . . . . . . . . . . . . . . . . 5 16 12 11 11 11 Leg 4 | . . . . . . . . . . . . . . . . . . . . . . . . 4 20 22 25 25 27 27 16 . . . . . Wheel 3 | . 28 27 28 22 . . . . . . . . . . . . . . . . . . . . . . . . . . . . . . . . Hover 14 | . . . . 4 37 38 38 38 38 38 38 26 26 26 26 26 28 29 28 28 22 26 33 25 10 7 5 4 . . . . . . . . Device 14 | . 12 9 . 6 7 9 7 6 6 7 11 5 6 6 6 8 4 5 4 7 11 9 11 9 11 15 15 12 10 26 33 31 28 30 25 25 Storage 5 | . 14 14 14 9 7 7 7 7 7 7 7 6 6 6 6 6 5 5 5 5 5 5 5 5 5 5 5 5 4 4 4 4 4 3 3 4 Processor 8 | . . . . 9 17 15 15 15 15 15 15 13 13 13 13 13 9 5 5 5 5 5 5 5 5 5 5 7 9 9 8 8 8 8 11 10 Hackware 9 | . . . . . . . . . . . . 12 13 13 13 13 22 23 26 28 27 26 27 35 33 30 30 30 28 2 . . . . . . Protection 4 | . . 4 14 6 4 5 7 7 7 7 2 5 6 6 6 3 1 5 1 . . . . . . . . . . 6 4 5 6 3 6 5 Energy Cannon 2 | . . . . . . . 1 5 6 4 2 5 6 6 1 4 4 4 4 4 2 2 2 4 2 2 4 . 2 1 1 2 2 2 2 2 Ballistic Gun 3 | . 28 28 16 11 . . . 1 1 . . . . . 3 3 . . 1 . . 2 . . . . . . . . . . . . . . Launcher 2 | . . . . . . . . 1 . . 4 . 5 6 2 . . . . . . 2 1 . 2 2 . 5 2 7 6 4 3 1 2 . Slashing Weapon 2 | . . . . . . . 5 6 6 7 7 5 . . 4 3 4 4 4 4 . . . . . . . . . . 3 3 3 3 2 2 Peak Build Rating 255 | 6 12 14 16 32 50 54 51 54 51 55 55 67 69 70 75 76 92 95 102 109 111 128 131 155 161 159 161 159 180 187 220 210 222 237 255 253 Average Rating 124 | 5 8 12 13 24 45 51 50 50 50 50 53 62 67 69 72 73 87 92 96 103 95 114 129 147 156 158 159 156 170 180 213 206 215 234 242 241 On Entrance 102 | . 6 12 13 16 28 49 50 51 50 51 55 53 67 69 70 74 68 92 92 102 107 97 128 129 153 159 158 158 141 180 187 206 208 215 237 253 Naked Turns 3 | . . . . . . . . . . . . . . . . . . . . . . . . . . . . . . . . . . . . 3 Heaviest Build 227 | 14 52 54 58 62 49 49 40 40 78 41 43 45 50 50 50 48 67 65 68 67 71 77 74 108 108 108 114 111 142 202 179 210 224 216 223 227 Greatest Support 260 | 32 32 32 32 64 40 44 40 41 41 44 44 56 56 56 56 56 69 69 71 71 71 82 82 108 108 124 124 149 164 167 196 196 235 235 260 260 Greatest Overweight (x) 6 | . 1 1 1 6 1 1 . . 1 . . 1 . . . . 1 . 1 . . 1 1 1 . . . . . 1 2 1 . . 1 . Average Overweight (x) . | . . 1 1 1 . . . . . . . . . . . . . . . . . . . . . . . . . . . . . . . . Largest Inventory Capacity 27 | 8 20 20 20 20 20 15 15 15 20 15 15 20 15 15 15 15 20 20 20 20 20 20 20 25 25 25 25 25 25 25 25 25 27 27 27 27 Average Capacity 20 | 7 11 20 20 20 15 15 15 15 15 15 15 15 15 15 15 15 19 20 20 20 20 20 20 20 25 25 25 25 25 25 25 25 25 27 27 26 Most Carried 27 | 5 19 20 20 20 20 15 15 15 15 15 15 15 15 15 15 15 20 20 20 20 20 20 20 22 25 25 25 25 25 25 25 25 27 27 27 27 Average Carried 20 | 2 10 19 19 19 14 14 14 14 15 14 14 14 14 14 15 15 19 20 19 19 19 19 19 19 24 24 24 24 24 24 24 24 24 26 26 25 Final Capacity 27 | 8 20 20 20 20 15 15 15 15 15 15 15 15 15 15 15 15 20 20 20 20 20 20 20 25 25 25 25 25 25 25 25 25 27 27 27 7 Final Carried 27 | 5 19 19 20 20 15 15 15 15 15 13 15 14 15 15 15 15 20 20 20 20 19 20 20 21 25 25 25 25 25 25 25 24 27 26 27 7 Class Distribution -------------------- 16% | Wizard-Mutant 15% | Alien-Mutant 13% | Mutant 11% | Scout 8% | Hacker-Scout 7% | Machinist-Assassin 6% | Commander-Scout 4% | Alien-Assassin 3% | Hacker-Mutant 3% | Machinist-Skirmisher Dominant Class ---------------- Mutant | -10/Materials Mutant | -10/Mines Mutant | -10/Subcaves Mutant | -8/Materials Scout | -7/Factory Scout | -7/Waste Scout | -7/Factory Scout | -7/Lower Caves Scout | -7/Lower Caves Scout | -7/Data Miner Scout | -6/Proximity Caves Hacker-Scout | -6/Factory Commander-Scout | -6/Extension Commander-Scout | -6/Cetus Commander-Mutant | -6/Archives Commander-Scout | -6/Hub_04(d) Hacker-Scout | -5/Factory Hacker-Mutant | -5/Waste Wizard-Mutant | -5/Factory Wizard-Mutant | -5/Upper Caves Wizard-Mutant | -5/Upper Caves Wizard-Mutant | -5/Warlord Wizard-Mutant | -4/Proximity Caves Wizard-Mutant | -4/Factory Wizard-Mutant | -4/Upper Caves Wizard-Mutant | -4/Upper Caves Wizard-Mutant | -4/Zhirov Wizard-Mutant | -3/Proximity Caves Wizard-Assassin | -3/Research Machinist-Skirmisher | -3/Quarantine Machinist-Assassin | -2/Research Machinist-Assassin | -2/Testing Alien-Assassin | -2/Section 7 Alien-Assassin | -1/Access Alien-Mutant | -1/Command Alien-Mutant | -1/Access_0 Resources | -11 -10 -10 -10 -8 -7 -7 -7 -7 -7 -7 -6 -6 -6 -6 -6 -6 -5 -5 -5 -5 -5 -5 -4 -4 -4 -4 -4 -3 -3 -3 -2 -2 -2 -1 -1 -1 ----------- Run | Yrd Mat Min Sub Mat Fac Was Fac Low Low Dat Pro Fac Ext Cet Arc Hub Fac Was Fac Upp Upp War Pro Fac Upp Upp Zhi Pro Res Qua Res Tes Sec Acc Com Ac0 Matter Collected 15672 | 314 288 224 106 1274 85 315 201 371 148 . 110 146 642 70 143 81 488 90 237 296 62 1137 74 618 140 13 67 323 348 613 679 815 1301 320 2331 1202 Remotely . | . . . . . . . . . . . . . . . . . . . . . . . . . . . . . . . . . . . . . Salvage Created 23470 | 125 304 208 137 2073 74 . 185 102 85 . . 188 744 206 379 100 386 705 562 323 23 1013 251 901 351 . 457 392 362 915 767 1712 2749 1192 4916 583 Parts 959 | 5 23 11 6 107 1 . 10 8 4 . . 14 30 6 18 3 16 8 26 17 5 48 12 31 17 . 7 12 13 69 28 59 112 56 152 25 Haulers Intercepted 5 | . 1 . . 4 . . . . . . . . . . . . . . . . . . . . . . . . . . . . . . . . Recyclers Shooed 9 | 1 . . . 1 . . . . . . . . 1 . . . 1 . 1 . . . . . . . . . . . . 1 1 1 1 . Parts Field Recycled 32 | . . . . . 29 3 . . . . . . . . . . . . . . . . . . . . . . . . . . . . . . Retrieved Matter 590 | . . . . . 542 48 . . . . . . . . . . . . . . . . . . . . . . . . . . . . . . Parts Self-Destructed 44 | . . . 8 . . . . 7 1 . . . . . . . . . . 15 3 . 2 . 2 . 5 1 . . . . . . . . Prevented 24 | . . . . . . . . 1 . . . . . . . . . . . . . . . . 13 . . 10 . . . . . . . . Kills | -11 -10 -10 -10 -8 -7 -7 -7 -7 -7 -7 -6 -6 -6 -6 -6 -6 -5 -5 -5 -5 -5 -5 -4 -4 -4 -4 -4 -3 -3 -3 -2 -2 -2 -1 -1 -1 ------- Run | Yrd Mat Min Sub Mat Fac Was Fac Low Low Dat Pro Fac Ext Cet Arc Hub Fac Was Fac Upp Upp War Pro Fac Upp Upp Zhi Pro Res Qua Res Tes Sec Acc Com Ac0 Combat Hostiles Destroyed 307 | . 7 8 5 33 . . . 8 3 . . 1 7 2 . . 3 3 2 8 5 36 6 4 4 . . 7 3 11 10 23 34 16 44 14 Guns 66 | . 7 8 5 32 . . . 2 1 . . . . . . . 1 3 2 1 . 3 1 . . . . . . . . . . . . . Cannons 37 | . . . . . . . . . . . . 1 2 . . . . . . 2 . . . . . . . . . . . 5 10 2 9 6 AOE 121 | . . . . . . . . 6 2 . . . 2 1 . . 2 . . 5 5 33 5 . 3 . . 4 1 2 5 8 9 10 14 4 Classes Destroyed 25 | 2 4 . . 6 . . 1 1 . . . . 1 . . . . 2 . . . 5 2 . . . . . . . 1 . . . . . Worker 27 | . . . . 2 . . 2 . . . . 1 1 . . . . . 2 . . . . 2 . . . . 2 . . 3 . 6 6 . Builder 17 | . . . . 4 . . . . . . . . 1 . . . . . 2 . . . . . . . . . . . . 1 7 2 . . Tunneler 2 | 2 . . . . . . . . . . . . . . . . . . . . . . . . . . . . . . . . . . . . Hauler 5 | . 1 . . 4 . . . . . . . . . . . . . . . . . . . . . . . . . . . . . . . . Recycler 20 | 1 . . . 2 1 . 2 . . . . 1 2 . . . 1 . 2 . . . . 3 . . . . . . . 2 2 . 1 . Mechanic 3 | . . . . . . . . . . . . . . . . . . . . . . 1 . . . . . . . . . . 1 . 1 . Operator 13 | . . . . . . . 1 . . . . 1 1 . 9 . . . . . . . . 1 . . . . . . . . . . . . Drone 2 | . . . . . . . . . . . . . . . . . . . . . . . 2 . . . . . . . . . . . . . Watcher 22 | . 3 . . 2 . . . . . . . . 2 2 . . 3 . . . . . . . . . . 2 1 1 . . 3 2 1 . Swarmer 49 | . 3 5 3 4 . . . 3 3 . . . . . . . . . . 5 5 1 . . . . . 3 . . 1 4 4 5 . . Saboteur 1 | . . . . . . . . . . . . . . . . . . . . . . . . . . . . . . . 1 . . . . . Grunt 112 | . 4 3 2 21 . . . . . . . . 4 . . . . . . . . 18 3 3 4 . . 4 3 2 1 8 6 4 22 . Brawler 5 | . . . . 1 . . . . . . . . . . . . . . . . . 2 . 1 . . . . . . . . . . 1 . Duelist 11 | . . . . 1 . . . . . . . . 1 . . . . . . . . 1 1 . . . . . . . 2 . 3 . 2 . Protector 3 | . . . . . . . . . . . . . . . . . . . . . . 3 . . . . . . . . . . . . . . Sentry 12 | . . . . 5 . . . . . . . . 1 . . . . . 1 1 . . . . . . . . . . . . 2 . 2 . Demolisher 1 | . . . . . . . . . . . . . . . . . . . . . . . . . . . . . . . 1 . . . . . Specialist 2 | . . . . . . . . . . . . . . . . . . . . . . 2 . . . . . . . . . . . . . . Hunter 16 | . . . . 1 . . . . . . . . . . . . . . . . . . . . . . . . . . 2 2 5 2 4 . Programmer 44 | . . . . . . . . 1 . . . 1 . . . . 3 . 1 2 . 5 . . . . . . . . . 9 11 5 6 . Behemoth 2 | . . . . . . . . . . . . . 1 . . . . . . . . . . . . . . . . . . . . . 1 . Compactor 3 | . . . . . . . . . . . . . . . . . . 3 . . . . . . . . . . . . . . . . . . Cetus Guard 2 | . . . . . . . . . . . . . . 2 . . . . . . . . . . . . . . . . . . . . . . Quarantine Guard 9 | . . . . . . . . . . . . . . . . . . . . . . . . . . . . . . 9 . . . . . . S7 Guard 1 | . . . . . . . . . . . . . . . . . . . . . . . . . . . . . . . . . 1 . . . M Guard 2 | . . . . . . . . . . . . . . . . . . . . . . . . . . . . . . . . . . . 2 . Enhanced Grunt 8 | . . . . . . . . . . . . . . . . 1 . . . . . . . . . . . . . . . . . . . 7 Enhanced Sentry 1 | . . . . . . . . . . . . . . . . . . . . . . . . . . . . . . . . . . . . 1 Enhanced Hunter 2 | . . . . . . . . . . . . . . . . . . . . . . . . . . . . . . . . . . . . 2 Combat Programmer 2 | . . . . . . . . . . . . . . . . . . . . . . . . . . . . . . . . . . . 2 . Striker 2 | . . . . . . . . . . . . . . . . . . . . . . 1 . . . . . . . . 1 . . . . . Executioner 4 | . . . . . . . . . . . . . . . . . . . . . . 1 . . . . . . . . 1 . 2 . . . Samaritan 3 | . . . . . . . . . . . . . . . . . . . . . . . 3 . . . . . . . . . . . . . Wasp 4 | . . . . . . . . 3 . . . . . . . . . . 1 . . . . . . . . . . . . . . . . . Thug 3 | . . . . . . . . 1 . . . . . . . . . . . . . 2 . . . . . . . . . . . . . . Butcher 1 | . . . . . . . . . . . . . . . 1 . . . . . . . . . . . . . . . . . . . . . Martyr 2 | . . . . . . . . . . . . . . . . . . 1 1 . . . . . . . . . . . . . . . . . Best Kill Streak 14 | 2 4 5 3 7 1 . 1 4 3 . . 1 5 2 3 . 2 3 3 5 5 11 3 4 4 . . 4 4 3 4 7 10 14 11 5 Combat Bots Only 11 | . 4 5 3 7 . . . 4 3 . . 1 3 1 . . 2 3 1 5 5 11 3 4 4 . . 4 3 3 4 7 6 7 8 5 Max Kills in Single Turn 4 | 1 2 1 1 2 1 . 1 2 2 . . 1 2 2 1 1 2 2 2 4 3 3 1 2 2 . . 2 1 2 1 2 4 4 4 2 Gunslinging 1 | . 1 . . . . . . . . . . . . . . . . . . . . . . . . . . . . . . . . . . . Exploded 4 | . . . . . . . . 2 2 . . . 1 1 . . 2 . . 4 3 3 1 . 2 . . 2 1 1 1 2 3 3 3 2 Melee . | . . . . . . . . . . . . . . . . . . . . . . . . . . . . . . . . . . . . . Uniques/NPCs Destroyed 6 | . . . . . . . . . . . . . . . . . . . . . . . . . . . . . . . . . . . 2 4 MAIN.C Shell (-1/Command) MAIN.C (-1/Command) A8 (-1/Access_0) A6 (-1/Access_0) A5 (-1/Access_0) Architect (-1/Access_0) Combat | -11 -10 -10 -10 -8 -7 -7 -7 -7 -7 -7 -6 -6 -6 -6 -6 -6 -5 -5 -5 -5 -5 -5 -4 -4 -4 -4 -4 -3 -3 -3 -2 -2 -2 -1 -1 -1 -------- Run | Yrd Mat Min Sub Mat Fac Was Fac Low Low Dat Pro Fac Ext Cet Arc Hub Fac Was Fac Upp Upp War Pro Fac Upp Upp Zhi Pro Res Qua Res Tes Sec Acc Com Ac0 Hostile Shots Fired 1760 | . 25 45 7 216 . . 27 22 9 7 . 37 21 12 2 . 17 . 11 13 57 6 12 5 6 . . 30 6 56 12 177 142 30 280 470 Missed 559 | . 4 12 5 64 . . 19 9 2 2 . 21 14 7 . . 5 . . 2 20 2 5 5 3 . . 12 4 20 1 66 51 13 51 140 Intercepted 5 | . . . . . . . . . . . . . . . . . . . . . . . . . . . . . . . 1 . . . 4 . Hits 1201 | . 21 33 2 152 . . 8 13 7 5 . 16 7 5 2 . 12 . 11 11 37 4 7 . 3 . . 18 2 36 11 111 91 17 229 330 Melee 9 | . . . . 2 . . . . . . . . . . . . . . . . . . . . . . . . . . 1 . 3 . . 3 Projectile 1192 | . 21 33 2 150 . . 8 13 7 5 . 16 7 5 2 . 12 . 11 11 37 4 7 . 3 . . 18 2 36 10 111 88 17 229 327 AOE 4 | . . . . . . . . . . . . . . . . . . . . . . 2 . . . . . . . . 2 . . . . . Critical Strikes 88 | . 1 . . 8 . . . . . . . 1 . 1 . . 2 . . . . . 1 . 1 . . 1 1 7 . 6 9 1 13 35 Actively Blocked 72 | . . . . . . . . . . . . . . . . . . . . . . . . . . . . 1 . 7 . 6 9 1 13 35 Part Disruptions 8 | . . . . . . . . . . . . . . . . . . . . . . . . . . . . . . . . . . . 3 5 Damage Taken 20305 | . 279 316 106 2126 . . 75 216 136 240 . 521 85 111 41 124 312 . 227 224 640 180 132 22 65 . . 371 40 735 520 1684 1385 489 2733 6170 Core 2016 | . 44 45 55 416 . . 6 27 13 . . 85 27 . 19 65 135 . . 40 95 66 39 . 25 . . . . 51 . 30 102 71 66 494 Absorbed by Shields 6393 | . . . . . . . . . . . . . 27 25 . . . . . . . . . . . . . . . 232 56 568 440 40 1667 3338 Reduced by Siege Mode 483 | . . . . . . . . . . . . . . . . . . . . . . . . . . . . . . . . . . . 161 322 Redirected to Shielding 908 | . . . . . . . . . . . . . . . . . . . 18 . . . . . . . . 18 . 161 36 149 22 92 94 318 Ignored by Resistances 6414 | . . . . 62 . . . 9 . . . 15 4 . . . 34 . . . . . . . . . . . . 455 . 568 969 73 2606 1619 Regen/Repaired (Parts) 8433 | . 44 . . . 72 21 51 . . . . 341 . . . . 124 . 184 . . 32 . 539 . . . . . 81 261 749 2019 184 862 2869 Core Remaining (%) 71 | 100 . . 42 24 . . . . . . 93 . . . . 76 . . . . . . 62 . . . . 97 . 96 . . 64 . . 56 Volleys Fired 1302 | 9 27 21 11 161 63 7 38 48 24 6 15 28 56 10 2 38 81 8 77 32 4 51 30 24 11 19 . 16 26 43 18 33 48 39 76 102 Largest 4 | 2 2 2 2 2 2 2 2 2 2 1 1 2 2 1 1 2 2 2 2 2 1 2 1 1 1 1 . 2 2 2 2 2 2 2 4 4 Hottest 200 | 40 46 46 90 110 78 95 95 65 65 65 65 115 129 43 43 120 85 85 120 85 80 120 85 105 105 105 . 160 190 160 170 200 200 200 200 200 Shots Fired 1767 | 18 54 42 20 306 65 14 40 55 28 6 15 34 68 10 2 40 87 13 86 38 4 52 32 24 11 19 . 19 27 58 25 39 64 46 136 170 Gun 531 | 18 54 42 18 294 6 7 7 12 6 . . 6 . . 1 4 13 10 14 10 . 6 3 . . . . . . . . . . . . . Cannon 907 | . . . 2 12 59 7 33 35 20 6 15 27 37 . . 35 66 3 72 26 . 4 21 19 7 19 . 2 21 22 7 22 34 30 81 163 Launcher 328 | . . . . . . . . 8 2 . . 1 31 10 1 . 8 . . 2 4 42 8 5 4 . . 17 6 36 18 17 30 16 55 7 Special 1 | . . . . . . . . . . . . . . . . 1 . . . . . . . . . . . . . . . . . . . . Kinetic 642 | 18 54 42 8 209 61 7 17 12 6 . . 11 3 . 1 4 13 10 14 10 . 6 3 . . . . . . . . . . . 45 88 Thermal 670 | . . . . . . . 16 35 20 6 15 22 34 . . 36 66 3 72 26 . 4 21 19 7 19 . 2 21 22 7 22 34 30 36 75 Explosive 79 | . . . . . . . . 4 2 . . . 8 . . . 2 . . 2 3 37 7 . . . . 11 . . . . . . . 3 Electromagnetic 376 | . . . 12 97 4 7 7 4 . . . 1 23 10 1 . 6 . . . 1 5 1 5 4 . . 6 6 36 18 17 30 16 55 4 Robot Hit Streak 40 | 6 6 8 13 9 1 3 4 6 4 . . 3 14 . 1 4 6 5 5 5 . 5 7 9 . . . . 5 7 3 7 16 19 23 40 Robot Miss Streak 10 | 1 2 3 1 4 2 2 4 5 4 . . 3 2 . . 1 3 1 3 3 . 1 . 2 . . . . 2 4 10 5 2 4 4 3 Penetration Max 1 | . . . . . . . . . . . . . . . . . . 1 1 . . 1 . . . . . . . . . . . . . . Secondary Targets 13 | . 2 2 . 7 . . . . . . . . . . . . . 1 . 1 . . . . . . . . . . . . . . . . Max Gunslinging Chain 1 | . 1 1 . 1 . . . . . . . . . . . . . 1 . 1 . . . . . . . . . . . . . . . . Capacitor 123 | . . . . . . . . . . . . . . . . . . . . . . . . . . . . . . . . . . 29 30 64 Shots Hit Robots 758 | 12 34 26 9 193 3 8 9 13 5 1 . 14 22 . 20 4 20 11 17 13 . 8 5 8 . . 10 . 7 6 6 16 23 21 92 122 Core Hits 1022 | 4 16 10 6 88 2 1 4 20 6 . . 6 41 16 9 2 10 5 9 8 7 118 16 19 14 . 4 26 17 52 37 48 91 53 182 75 Critical Kills 14 | . . . . . . . . . . . . . . . . . . 1 2 2 . 2 . . . . . . . . . 2 1 1 1 2 Critical Parts Destroyed 9 | . 1 . . 3 . . 1 . . . . . . . . . 2 . 1 . . . 1 . . . . . . . . . . . . . Critical Strikes 32 | . 1 . . 6 . . 1 . . . . . . . . . 2 3 3 3 . 2 1 . . . 1 . 1 . . 2 1 1 1 3 Meltdown 9 | . . . . . . . . . . . . . . . . . . . 1 1 . . . . . . . . . . . 2 1 1 1 2 Destroy 15 | . 1 . . 3 . . 1 . . . . . . . . . 2 2 2 1 . 2 1 . . . . . . . . . . . . . Blast 1 | . . . . . . . . . . . . . . . . . . . . . . . . . . . . . . . . . . . . 1 Corrupt 3 | . . . . 3 . . . . . . . . . . . . . . . . . . . . . . . . . . . . . . . . Sever 2 | . . . . . . . . . . . . . . . . . . 1 . 1 . . . . . . . . . . . . . . . . Impale 2 | . . . . . . . . . . . . . . . . . . . . . . . . . . . 1 . 1 . . . . . . . Melee Attacks 231 | . . . . . . . 23 16 11 7 3 30 . . 20 4 25 2 9 1 . . 5 24 . . 10 . 4 . 2 5 12 2 15 1 Impact . | . . . . . . . . . . . . . . . . . . . . . . . . . . . . . . . . . . . . . Slashing 185 | . . . . . . . 23 16 11 4 3 30 . . 20 4 25 2 9 1 . . . . . . . . . . 2 5 12 2 15 1 Piercing 46 | . . . . . . . . . . 3 . . . . . . . . . . . . 5 24 . . 10 . 4 . . . . . . . Sneak Attacks 34 | . . . . . . . 2 . . 1 . 4 . . 10 . 1 2 4 . . . 3 3 . . . . 2 . . 2 . . . . Combat Hostiles . | . . . . . . . . . . . . . . . . . . . . . . . . . . . . . . . . . . . . . Follow-up Attacks . | . . . . . . . . . . . . . . . . . . . . . . . . . . . . . . . . . . . . . Damage Inflicted 75723 | 151 434 398 139 3300 47 133 426 830 324 58 . 543 2396 844 1461 201 1158 433 887 752 561 7112 1171 1269 530 . 870 1301 736 1962 1650 6164 7755 3681 12605 13441 Guns 6232 | 151 434 398 139 3222 47 53 78 163 23 . . 26 . . 28 76 244 231 368 275 . 221 55 . . . . . . . . . . . . . Cannons 20608 | . . . . . . 80 127 . 27 . . 84 506 . . 60 61 32 125 133 . . . 31 . . . . 40 . . 2268 2711 1265 5136 7922 Explosions 43279 | . . . . 78 . . . 667 208 . . . 1890 844 11 65 470 . . 306 561 6891 813 845 530 . . 1301 487 1962 1650 3553 5044 2416 7168 5519 Melee 5604 | . . . . . . . 221 . 66 58 . 433 . . 1422 . 383 170 394 38 . . 303 393 . . 870 . 209 . . 343 . . 301 . Ramming . | . . . . . . . . . . . . . . . . . . . . . . . . . . . . . . . . . . . . . Kinetic 8971 | 151 434 398 55 2159 27 80 75 163 23 . . 110 112 . 28 76 244 231 368 275 . 221 55 . . . . . . . . . . . 1719 1967 Thermal 28852 | . . . . 78 . . 52 . 27 . . . 394 312 . 60 61 32 125 133 . . . 191 72 . . . 40 224 221 4284 4583 2224 5602 10137 Explosive 12146 | . . . . . . . . 604 208 . . . 1006 . . . 180 . . 306 529 6562 813 . . . . 753 . . . . 106 57 . 1022 Electromagnetic 20150 | . . . 84 1063 20 53 78 63 . . . . 884 532 11 65 290 . . . 32 329 . 685 458 . . 548 487 1738 1429 1537 3066 1400 4983 315 Impact . | . . . . . . . . . . . . . . . . . . . . . . . . . . . . . . . . . . . . . Slashing 3771 | . . . . . . . 221 . 66 . . 433 . . 1422 . 383 170 394 38 . . . . . . . . . . . 343 . . 301 . Piercing 1833 | . . . . . . . . . . 58 . . . . . . . . . . . . 303 393 . . 870 . 209 . . . . . . . Highest Corruption 10 | . . . . 1 . . 1 1 1 1 1 . . . 7 2 . . 2 6 6 7 7 . . . . 10 . 1 . 7 7 . . . Average Corruption 3 | . . . . 1 . . 1 1 1 1 1 . . . 2 2 . . 1 5 6 6 7 . . . . 10 . 1 . 4 6 . . . Corruption Purged 7 | . . . . . . . . . . . . . . . 7 . . . . . . . . . . . . . . . . . . . . . Corruption Blocked . | . . . . . . . . . . . . . . . . . . . . . . . . . . . . . . . . . . . . . Effects 142 | . . . . 8 . . 1 7 7 . 2 . . . 5 . . . 3 21 6 3 21 . . . . . . . . 17 41 . . . Message Errors 41 | . . . . 2 . . . 1 1 . 1 . . . 2 . . . 1 9 2 . 4 . . . . . . . . 5 13 . . . Matter Fused 36 | . . . . 3 . . 1 3 . . . . . . 2 . . . . 4 2 1 6 . . . . . . . . 4 10 . . . Heat Flow Errors 17 | . . . . . . . . . 1 . . . . . 1 . . . 2 3 . . 3 . . . . . . . . 2 5 . . . Energy Discharges 19 | . . . . . . . . 2 3 . 1 . . . . . . . . 2 . 1 2 . . . . . . . . 3 5 . . . Parts Rejected 1 | . . . . . . . . . . . . . . . . . . . . . . . . . . . . . . . . . 1 . . . Parts Fused 2 | . . . . . . . . . . . . . . . . . . . . . . . . . . . . . . . . . 2 . . . Data Loss (minor) 13 | . . . . 1 . . . . 1 . . . . . . . . . . 1 1 1 2 . . . . . . . . 3 3 . . . Data Loss (major) 3 | . . . . 1 . . . . . . . . . . . . . . . 1 1 . . . . . . . . . . . . . . . Misfires 9 | . . . . 1 . . . 1 1 . . . . . . . . . . 1 . . 3 . . . . . . . . . 2 . . . Weapon Failures 1 | . . . . . . . . . . . . . . . . . . . . . . . 1 . . . . . . . . . . . . . Overload Shots . | . . . . . . . . . . . . . . . . . . . . . . . . . . . . . . . . . . . . . Overflow Damage 5869 | . . . . 18 . . 105 26 39 . . 91 62 4 408 41 171 . 26 18 1 80 179 96 . . 165 33 64 . 33 1565 806 507 813 518 Projectiles 2820 | . . . . . . . . . 2 . . . . . . . . . . . . . . . . . . . . . . 1073 556 447 563 179 Explosions 1770 | . . . . 18 . . . 26 37 . . . 62 4 . 41 61 . . 18 1 80 11 75 . . . 33 . . 33 371 250 60 250 339 Melee 1279 | . . . . . . . 105 . . . . 91 . . 408 . 110 . 26 . . . 168 21 . . 165 . 64 . . 121 . . . . Knockbacks 13 | . . . . . . . 1 . . . . 2 . . . . . . . . . . . . . . . . . . . . . . 4 6 Impact . | . . . . . . . . . . . . . . . . . . . . . . . . . . . . . . . . . . . . . Kinetic 13 | . . . . . . . 1 . . . . 2 . . . . . . . . . . . . . . . . . . . . . . 4 6 Secondary . | . . . . . . . . . . . . . . . . . . . . . . . . . . . . . . . . . . . . . Self-Inflicted Damage 1105 | . . . . . . . . . 28 . . . . . . 109 . . . . . 12 . 22 . . . . . 6 56 12 332 224 135 169 Shots 66 | . . . . . . . . . 1 . . . . . . 1 . . . . . 1 . 2 . . . . . 1 4 1 27 2 8 18 Rammed . | . . . . . . . . . . . . . . . . . . . . . . . . . . . . . . . . . . . . . Targets Rammed . | . . . . . . . . . . . . . . . . . . . . . . . . . . . . . . . . . . . . . Kicked . | . . . . . . . . . . . . . . . . . . . . . . . . . . . . . . . . . . . . . Crushed . | . . . . . . . . . . . . . . . . . . . . . . . . . . . . . . . . . . . . . Highest Temperature 342 | . 40 42 2 99 50 253 208 208 163 74 94 128 241 7 267 210 185 64 286 249 52 108 293 196 293 117 . 171 45 224 114 195 204 192 201 342 Average Temperature 58 | . 17 12 2 24 21 79 69 41 59 31 22 46 67 7 141 71 45 33 62 54 18 24 64 58 114 34 . 89 17 70 33 74 71 70 99 88 Received Heat Transfer 1993 | . 141 63 9 1116 . . 30 45 . . . 63 32 . . 6 . . . . 36 9 37 . 9 . . 78 46 14 11 62 67 . 101 18 Effects 5 | . . . . . . . . . . . . . . . . . . . . 2 . . . . . . . . . . . . 3 . . . Interference 5 | . . . . . . . . . . . . . . . . . . . . 2 . . . . . . . . . . . . 3 . . . Siege Activations 9 | . . . . . . . . . . . . . . . . . . . . . . . . . . . . . . . . . 1 . 3 5 Total Turns 228 | . . . . . . . . . . . . . . . . . . . . . . . . . . . . . . . . . 15 . 89 124 Longest Duration 50 | . . . . . . . . . . . . . . . . . . . . . . . . . . . . . . . . . 15 . 50 42 Martial Activations . | . . . . . . . . . . . . . . . . . . . . . . . . . . . . . . . . . . . . . Shielding Activations . | . . . . . . . . . . . . . . . . . . . . . . . . . . . . . . . . . . . . . Robots Disrupted 4 | . . . . . . . . . . . . . . . . . . . . . . . . . . . . . . 2 1 . 1 . . . Combat Hostiles 4 | . . . . . . . . . . . . . . . . . . . . . . . . . . . . . . 2 1 . 1 . . . Robots Corrupted 79 | . . . . 1 . . . . . . . . 3 1 . 1 . . . . . . . 4 1 . . 3 2 10 5 7 14 4 21 2 Combat Hostiles 75 | . . . . 1 . . . . . . . . 3 1 . . . . . . . . . 4 1 . . 3 2 9 5 7 14 3 20 2 Parts Fried 238 | . . . 1 5 . . . . . . . . 6 1 . 1 1 . . . . . . 8 3 . . 6 5 39 17 13 39 15 68 10 Impact Corruptions . | . . . . . . . . . . . . . . . . . . . . . . . . . . . . . . . . . . . . . Robots Melted 10 | . . . . . . . . . . . . . . . . . . . 1 1 . . . . . . . . . . . 3 1 1 1 2 Combat Hostiles 9 | . . . . . . . . . . . . . . . . . . . . 1 . . . . . . . . . . . 3 1 1 1 2 Parts Melted 21 | . . . . . . . . . . . . . . . . . . . . 2 . . . . . . . . . . . 6 7 4 2 . Heat Transferred 15163 | . . . . 100 . . 74 . 37 . . . 443 200 . 74 74 37 148 148 . . . 150 . . . . . 150 150 2432 3060 1310 2646 3930 Parts Sabotaged . | . . . . . . . . . . . . . . . . . . . . . . . . . . . . . . . . . . . . . Parts Stolen . | . . . . . . . . . . . . . . . . . . . . . . . . . . . . . . . . . . . . . Parts Stripped . | . . . . . . . . . . . . . . . . . . . . . . . . . . . . . . . . . . . . . Power Chain Reactions 28 | . . . . 1 . . . . . . . . 1 2 . 1 . . . . . 2 . . 1 . . . . 4 3 3 3 1 6 . Alert | -11 -10 -10 -10 -8 -7 -7 -7 -7 -7 -7 -6 -6 -6 -6 -6 -6 -5 -5 -5 -5 -5 -5 -4 -4 -4 -4 -4 -3 -3 -3 -2 -2 -2 -1 -1 -1 ------- Run | Yrd Mat Min Sub Mat Fac Was Fac Low Low Dat Pro Fac Ext Cet Arc Hub Fac Was Fac Upp Upp War Pro Fac Upp Upp Zhi Pro Res Qua Res Tes Sec Acc Com Ac0 Maximum Alert Level 5 | . . . . 1 . . . . . . . . 1 1 1 2 1 . . . . . . 1 . . . . . . . 2 4 4 5 . Low Security (%) 69 | 100 100 100 . 83 100 100 100 . . . . 100 81 11 97 64 97 100 100 . . . . 72 . . . . 100 100 100 67 24 . . . Level 1 6 | . . . . 16 . . . . . . . . 18 88 2 27 2 . . . . . . 27 . . . . . . . 13 8 . . . Level 2 3 | . . . . . . . . . . . . . . . . 8 . . . . . . . . . . . . . . . 18 2 25 8 . Level 3 8 | . . . . . . . . . . . . . . . . . . . . . . . . . . . . . . . . . 64 37 21 . Level 4 2 | . . . . . . . . . . . . . . . . . . . . . . . . . . . . . . . . . . 36 9 . Level 5 9 | . . . . . . . . . . . . . . . . . . . . . . . . . . . . . . . . . . . 61 . High Security . | . . . . . . . . . . . . . . . . . . . . . . . . . . . . . . . . . . . . . Max Security . | . . . . . . . . . . . . . . . . . . . . . . . . . . . . . . . . . . . . . Peak Influence 1230 | 10 126 125 . 263 109 7 70 . . . . 150 303 331 206 445 212 16 123 . . . . 332 . . . . 90 190 191 568 1101 1230 1186 . Initial 665 | . . . . . 109 . . . . . . 150 26 158 116 17 210 2 . . . . . 150 . . . . . . 42 . 60 656 665 . Average 187 | . 27 22 . 114 17 . 16 . . . . 32 90 259 136 163 63 1 54 . . . . 135 . . . . 12 81 46 194 655 944 816 . Influence Increases 15929 | 15 281 258 150 1015 150 9 266 160 90 . . 399 1075 373 248 1173 481 42 477 185 155 725 145 515 105 . 15 230 163 515 341 940 1536 843 1561 1293 Destroy 0b10 Robot/C 6420 | . 140 180 100 660 . . . 80 60 . . 20 420 160 80 280 80 . 40 160 100 660 80 80 80 . . 140 60 220 200 460 680 320 880 . Destroy 0b10 Robot/NC 615 | 15 20 . . 70 5 . 20 . 5 . . 15 45 10 45 15 25 . 30 5 . 20 10 25 . . 15 10 15 5 . 30 65 50 45 . Destroy Leader 1062 | . 38 40 20 152 . . . 20 10 . . 10 36 . . 92 28 . 10 20 10 . 10 10 10 . . 20 12 92 30 60 126 54 152 . Allied During Kill 826 | . . 1 . . . . . . . . . . 254 170 103 282 6 . 10 . . . . . . . . . . . . . . . . . Successful Hack 670 | . 38 7 . 31 76 . 53 . . . . 44 22 . . 84 91 . 103 . . . . 6 . . . . 8 31 . 24 18 34 . . Disable Machine 1245 | . . . . 15 30 . 15 . . . . 15 90 . 15 285 75 . 45 . . . . 105 . . . . . 105 . 75 150 75 75 75 Destroy Structure 3636 | . . . . 12 24 9 28 . . . . 40 58 33 5 135 176 42 134 . . . . 124 . . . . 38 62 81 276 482 250 409 1218 Advance Influence 300 | . . . . . . . . . . . . 150 . . . . . . . . . . . 150 . . . . . . . . . . . . Partial Spotted 90 | . . . . . . . 75 . . . . . 15 . . . . . . . . . . . . . . . . . . . . . . . Lose Combat Pursuer 1065 | . 45 30 30 75 15 . 75 60 15 . . 105 135 . . . . . 105 . 45 45 45 15 15 . . 60 30 . 30 15 15 60 . . Influence Decreases 14686 | 15 281 258 150 775 390 9 233 187 96 . . 344 847 365 489 793 905 48 442 170 130 297 648 515 48 57 15 230 163 440 416 832 549 897 902 1750 Entered New Map 3942 | . . . . . 131 . . 13 2 . . . 29 125 175 33 220 4 . 14 10 75 503 . . 12 . . . . 33 . 48 439 376 1700 Time Decay 8851 | 15 281 247 150 516 249 9 186 164 94 . . 333 574 180 254 262 581 44 412 156 90 222 145 505 48 45 15 230 163 440 374 382 501 458 526 . Lost Part 331 | . . . . 210 . . . 10 . . . 11 . . . 10 . . 10 . 30 . . . . . . . . . . . . . . 50 Lost Ally 377 | . . 11 . . 10 . 16 . . . . . 94 60 60 67 20 . 20 . . . . 10 . . . . . . 9 . . . . . Purge Threat 1185 | . . . . 49 . . 31 . . . . . 150 . . 421 84 . . . . . . . . . . . . . . 450 . . . . Squads Dispatched 91 | . . . . 8 3 . 7 . . . . 5 2 . . 3 13 . 7 . . . . 6 . . . . 5 1 2 8 9 7 5 . Investigation 25 | . . . . 1 . . 5 . . . . 2 . . . . 4 . 4 . . . . 2 . . . . 4 . 2 . 1 . . . Extermination 31 | . . . . . 2 . 2 . . . . 2 . . . 1 5 . 3 . . . . 3 . . . . . . . 4 4 3 2 . Reinforcement 20 | . . . . 4 1 . . . . . . 1 2 . . 2 4 . . . . . . . . . . . 1 1 . 1 3 . . . Assault 8 | . . . . . . . . . . . . . . . . . . . . . . . . . . . . . . . . . 1 4 3 . Garrison 7 | . . . . 3 . . . . . . . . . . . . . . . . . . . 1 . . . . . . . 3 . . . . Intercept . | . . . . . . . . . . . . . . . . . . . . . . . . . . . . . . . . . . . . . Searches Triggered . | . . . . . . . . . . . . . . . . . . . . . . . . . . . . . . . . . . . . . Construction Impeded 7 | . . . . 2 . . . . . . . . 2 . . . 1 . . . . . . . . . . . . . . 1 1 . . . Haulers Reinforced 1 | . . . . . . . . . . . . . . . . . . . . . . . . . . . . . . 1 . . . . . . Active Scanning Responses . | . . . . . . . . . . . . . . . . . . . . . . . . . . . . . . . . . . . . . Cargo Convoy Interrupts 1 | . . . . . . . . . . . . . . . . . 1 . . . . . . . . . . . . . . . . . . . Stealth | -11 -10 -10 -10 -8 -7 -7 -7 -7 -7 -7 -6 -6 -6 -6 -6 -6 -5 -5 -5 -5 -5 -5 -4 -4 -4 -4 -4 -3 -3 -3 -2 -2 -2 -1 -1 -1 --------- Run | Yrd Mat Min Sub Mat Fac Was Fac Low Low Dat Pro Fac Ext Cet Arc Hub Fac Was Fac Upp Upp War Pro Fac Upp Upp Zhi Pro Res Qua Res Tes Sec Acc Com Ac0 Distress Signals 61 | . . . . 7 1 . . . . . . 1 2 2 . 2 . . . . . . . 1 . . . 1 6 1 6 2 3 . 26 . Communications Jammed . | . . . . . . . . . . . . . . . . . . . . . . . . . . . . . . . . . . . . . Distress Signals . | . . . . . . . . . . . . . . . . . . . . . . . . . . . . . . . . . . . . . Times Spotted 498 | . 13 11 7 46 3 1 10 13 3 4 . 17 32 10 15 9 16 8 9 2 3 29 5 12 4 . . 11 7 14 25 25 36 21 49 28 Peak Tracking Total 11 | . 4 6 3 7 2 1 6 4 4 4 1 9 5 5 2 3 2 5 5 2 6 11 4 4 3 . . 8 3 3 6 5 7 7 8 7 Tactical Retreats 49 | . 3 2 1 3 1 . 3 3 1 . . 5 5 . . . . 1 3 . 2 3 1 1 1 . . 2 1 . 3 1 1 2 . . Traps | -11 -10 -10 -10 -8 -7 -7 -7 -7 -7 -7 -6 -6 -6 -6 -6 -6 -5 -5 -5 -5 -5 -5 -4 -4 -4 -4 -4 -3 -3 -3 -2 -2 -2 -1 -1 -1 ------- Run | Yrd Mat Min Sub Mat Fac Was Fac Low Low Dat Pro Fac Ext Cet Arc Hub Fac Was Fac Upp Upp War Pro Fac Upp Upp Zhi Pro Res Qua Res Tes Sec Acc Com Ac0 Traps Triggered 78 | . . . 2 1 1 . 3 . . . . 4 6 . . 1 2 . 1 . . . . . . . . . . 10 . . 1 5 41 . Indirectly 56 | . . . . . . . . . . . . . 6 . . . . . . . . . . . . . . . . 6 . . . 5 39 . Trap Hack Attempts . | . . . . . . . . . . . . . . . . . . . . . . . . . . . . . . . . . . . . . Triggered . | . . . . . . . . . . . . . . . . . . . . . . . . . . . . . . . . . . . . . Disarmed . | . . . . . . . . . . . . . . . . . . . . . . . . . . . . . . . . . . . . . Reprogrammed . | . . . . . . . . . . . . . . . . . . . . . . . . . . . . . . . . . . . . . Reused . | . . . . . . . . . . . . . . . . . . . . . . . . . . . . . . . . . . . . . Traps Extracted . | . . . . . . . . . . . . . . . . . . . . . . . . . . . . . . . . . . . . . Installed . | . . . . . . . . . . . . . . . . . . . . . . . . . . . . . . . . . . . . . Triggered . | . . . . . . . . . . . . . . . . . . . . . . . . . . . . . . . . . . . . . Machines | -11 -10 -10 -10 -8 -7 -7 -7 -7 -7 -7 -6 -6 -6 -6 -6 -6 -5 -5 -5 -5 -5 -5 -4 -4 -4 -4 -4 -3 -3 -3 -2 -2 -2 -1 -1 -1 ---------- Run | Yrd Mat Min Sub Mat Fac Was Fac Low Low Dat Pro Fac Ext Cet Arc Hub Fac Was Fac Upp Upp War Pro Fac Upp Upp Zhi Pro Res Qua Res Tes Sec Acc Com Ac0 Machines Disabled 86 | . . . 1 1 2 . 1 . . 1 . 1 6 . 1 19 5 . 3 . . . . 7 . . . . . 7 . 5 11 5 5 5 Max in Single Turn 15 | . . . 1 1 1 . 1 . . 1 . 1 1 . . 15 2 . 1 . . . . 3 . . . . . 1 . 1 2 2 1 1 Garrison Access 12 | . . . . . . . 2 . . . . 1 . . . . 3 . 1 . . . . 2 . . . . 1 1 1 . . . . . Network Hub 2 | . . . . . . . . . . . . . . . . 2 . . . . . . . . . . . . . . . . . . . . Machines Repaired . | . . . . . . . . . . . . . . . . . . . . . . . . . . . . . . . . . . . . . Machines Dismantled 1 | . . . . . . . . . . . . . . . . 1 . . . . . . . . . . . . . . . . . . . . Machines Sabotaged . | . . . . . . . . . . . . . . . . . . . . . . . . . . . . . . . . . . . . . Overloaded Fab Kills . | . . . . . . . . . . . . . . . . . . . . . . . . . . . . . . . . . . . . . Hacking | -11 -10 -10 -10 -8 -7 -7 -7 -7 -7 -7 -6 -6 -6 -6 -6 -6 -5 -5 -5 -5 -5 -5 -4 -4 -4 -4 -4 -3 -3 -3 -2 -2 -2 -1 -1 -1 --------- Run | Yrd Mat Min Sub Mat Fac Was Fac Low Low Dat Pro Fac Ext Cet Arc Hub Fac Was Fac Upp Upp War Pro Fac Upp Upp Zhi Pro Res Qua Res Tes Sec Acc Com Ac0 Machines Accessed 205 | . 11 1 1 12 12 . 26 1 . 4 . 14 8 . . 8 19 . 21 . . 4 . 20 2 . 4 1 10 8 2 5 5 3 3 . Terminals 113 | . 8 1 . 8 7 . 13 . . . . 6 7 . . 8 12 . 11 . . . . 9 . . . 1 5 3 1 3 4 3 3 . Fabricators 20 | . . . . . . . 4 . . . . 3 . . . . 3 . 4 . . . . 2 . . . . 2 . 1 1 . . . . Repair Stations 20 | . 1 . . 1 1 . 4 . . . . 3 . . . . 1 . 2 . . . . 4 . . . . . 2 . 1 . . . . Recycling Units 15 | . 2 . . 1 2 . 3 . . . . 1 1 . . . . . 2 . . . . 2 . . . . 1 . . . . . . . Scanalyzers 7 | . . . . 1 1 . . . . . . . . . . . . . 1 . . . . 1 . . . . 1 2 . . . . . . Garrison Access 14 | . . . . 1 1 . 2 . . . . 1 . . . . 3 . 1 . . . . 2 . . . . 1 1 . . 1 . . . Total Hacks 683 | . 33 3 9 39 28 . 60 1 . 26 . 34 17 . . 25 108 . 74 . . 4 . 94 7 . 17 1 34 21 8 19 11 6 4 . Successful 471 | . 18 1 9 17 16 . 25 1 . 26 . 18 7 . . 19 75 . 67 . . 4 . 88 7 . 17 1 31 7 2 9 3 2 1 . Failed 209 | . 15 2 . 22 12 . 35 . . . . 16 10 . . 6 32 . 7 . . . . 5 . . . . 2 14 6 10 8 4 3 . Catastrophic 40 | . 4 . . 4 2 . 8 . . . . 2 1 . . . 4 . 1 . . . . . . . . . . 3 3 2 3 1 2 . Database Lockouts 3 | . . . . . . . . . . . . . . . . . 1 . . . . . . 1 . . . . 1 . . . . . . . Manual 263 | . 15 3 . 13 8 . 23 . . . . 14 2 1 . 15 67 . 30 . . 1 . 37 . . . . 16 3 4 11 . . . . Terminals 406 | . 22 3 . 26 18 . 32 . . . . 14 14 . . 25 82 . 47 . . . . 53 . . . 1 24 10 2 14 9 6 4 . Fabricators 81 | . . . . . . . 15 . . . . 7 . . . . 15 . 13 . . . . 16 . . . . 7 . 6 2 . . . . Repair Stations 65 | . 5 . . 2 2 . 6 . . . . 10 . . . . 7 . 7 . . . . 16 . . . . . 7 . 3 . . . . Recycling Units 27 | . 6 . . 3 3 . 4 . . . . 1 3 . . . . . 2 . . . . 4 . . . . 1 . . . . . . . Scanalyzers 20 | . . . . 5 4 . . . . . . . . . . . . . 4 . . . . 3 . . . . 1 3 . . . . . . Garrison Access 20 | . . . . 3 1 . 3 . . . . 2 . . . . 4 . 1 . . . . 2 . . . . 1 1 . . 2 . . . Terminal Hacks 252 | . 10 . 9 9 6 . 9 1 . 26 . 2 5 . . 10 40 . 34 . . 4 . 35 7 . 17 1 15 1 . 5 3 2 1 . Record 34 | . . . 8 . . . . . . 11 . . . . . . . . . . . 3 . . 6 . 5 . 1 . . . . . . . Part Schematic 31 | . 3 . . 2 . . . . . 8 . 1 . . . . 5 . 6 . . . . 1 . . 4 . 1 . . . . . . . Robot Schematic 5 | . . . . . . . . . . 4 . . . . . . . . . . . . . 1 . . . . . . . . . . . . Robot Analysis 13 | . 1 . . . . . . . . . . . . . . . . . 1 . . . . 5 . . 4 . 2 . . . . . . . Prototype ID Bank 23 | . 1 . . 2 1 . 1 . . 3 . . . . . . 3 . . . . . . 4 . . 4 . 2 1 . 1 . . . . Open Door 12 | . . . . . . . . 1 . . . . 3 . . . . . . . . 1 . . 1 . . 1 1 . . . 2 1 1 . Level Access Points 2 | . . . . . . . . . . . . . . . . 1 . . . . . . . . . . . . 1 . . . . . . . Branch Access Points 8 | . 1 . . 1 . . 1 . . . . . . . . . 1 . 1 . . . . 1 . . . . 1 . . . . 1 . . Machine Index 2 | . . . . . . . . . . . . . . . . . . . 1 . . . . 1 . . . . . . . . . . . . Terminal Index 9 | . 1 . . 1 1 . 1 . . . . . . . . 1 2 . 1 . . . . 1 . . . . . . . . . . . . Fabricator Index 3 | . . . . . . . . . . . . . . . . . 1 . 1 . . . . 1 . . . . . . . . . . . . Repair Station Index 2 | . . . . 1 . . . . . . . . . . . . . . . . . . . 1 . . . . . . . . . . . . Alert Level 4 | . . . . . . . . . . . . . . . . 1 1 . . . . . . 2 . . . . . . . . . . . . Unreport Threat 10 | . . . . 1 . . 1 . . . . . 1 . . 3 1 . . . . . . . . . . . . . . 3 . . . . Locate Traps 33 | . 2 . . . 2 . 2 . . . . 1 . . . 1 8 . 8 . . . . 6 . . . . 2 . . 1 . . . . Investigation Status 1 | . . . . . . . . . . . . . . . . . . . 1 . . . . . . . . . . . . . . . . . Recall Investigation 5 | . . . . . . . . . . . . . . . . . . . 3 . . . . 1 . . . . 1 . . . . . . . Recall Extermination 8 | . . . . . . . . . . . . . . . . . 3 . 3 . . . . 2 . . . . . . . . . . . . Recall Reinforcements 3 | . . . . . . . . . . . . . 1 . . . 2 . . . . . . . . . . . . . . . . . . . Registered Components 8 | . 1 . . . 1 . 1 . . . . . . . . . 2 . 1 . . . . 1 . . . . 1 . . . . . . . Registered Prototypes 5 | . . . . . 1 . . . . . . . . . . . 1 . 1 . . . . 1 . . . . 1 . . . . . . . Zone Layout 30 | . . . . 1 . . 2 . . . . . . . . 3 10 . 6 . . . . 6 . . . . 1 . . . 1 . . . Proto ID Catalog 1 | . . . 1 . . . . . . . . . . . . . . . . . . . . . . . . . . . . . . . . . Fabricator Hacks 49 | . . . . . . . 5 . . . . 4 . . . . 11 . 7 . . . . 14 . . . . 5 . 1 2 . . . . Network Status 3 | . . . . . . . 1 . . . . 1 . . . . . . . . . . . . . . . . 1 . . . . . . . Load Schematic 30 | . . . . . . . 4 . . . . 2 . . . . 7 . 5 . . . . 8 . . . . 2 . 1 1 . . . . Build 16 | . . . . . . . . . . . . 1 . . . . 4 . 2 . . . . 6 . . . . 2 . . 1 . . . . Repair Station Hacks 45 | . 2 . . 1 2 . 3 . . . . 7 . . . . 5 . 6 . . . . 16 . . . . . 2 . 1 . . . . Scan Component 25 | . 1 . . 1 1 . 2 . . . . 4 . . . . 3 . 3 . . . . 8 . . . . . 1 . 1 . . . . Repair 20 | . 1 . . . 1 . 1 . . . . 3 . . . . 2 . 3 . . . . 8 . . . . . 1 . . . . . . Recycling Unit Hacks 15 | . 3 . . 1 1 . 1 . . . . 1 1 . . . . . 2 . . . . 4 . . . . 1 . . . . . . . Process 1 | . . . . . . . . . . . . . . . . . . . . . . . . 1 . . . . . . . . . . . . Retrieve Matter 1 | . . . . . . . . . . . . . . . . . . . . . . . . 1 . . . . . . . . . . . . Retrieve Components 13 | . 3 . . 1 1 . 1 . . . . 1 1 . . . . . 2 . . . . 2 . . . . 1 . . . . . . . Scanalyzer 15 | . . . . 3 2 . . . . . . . . . . . . . 4 . . . . 3 . . . . 1 2 . . . . . . Insert Component 10 | . . . . 1 1 . . . . . . . . . . . . . 3 . . . . 2 . . . . 1 2 . . . . . . Analyze 5 | . . . . 2 1 . . . . . . . . . . . . . 1 . . . . 1 . . . . . . . . . . . . Garrison Access Hacks 11 | . . . . . . . 2 . . . . 1 . . . . 3 . 1 . . . . 2 . . . . 1 1 . . . . . . Seal Access 11 | . . . . . . . 2 . . . . 1 . . . . 3 . 1 . . . . 2 . . . . 1 1 . . . . . . Unauthorized Hacks 84 | . 3 1 . 3 5 . 5 . . . . 3 1 . . 9 16 . 13 . . . . 14 . . . . 8 1 1 1 . . . . Terminals 65 | . 3 1 . 3 5 . 3 . . . . 1 1 . . 9 12 . 7 . . . . 12 . . . . 6 1 . 1 . . . . Track 19 | . . . . . . . . . . . . . . . . 3 4 . 4 . . . . 5 . . . . 3 . . . . . . . Assimilate 11 | . . . . . 2 . 1 . . . . . . . . 3 2 . . . . . . 2 . . . . 1 . . . . . . . Botnet 28 | . 2 . . 2 2 . 2 . . . . 1 . . . 2 6 . 3 . . . . 5 . . . . 2 . . 1 . . . . Disrupt 4 | . . 1 . . . . . . . . . . 1 . . 1 . . . . . . . . . . . . . 1 . . . . . . Operators 3 | . 1 . . 1 1 . . . . . . . . . . . . . . . . . . . . . . . . . . . . . . . Fabricators 19 | . . . . . . . 2 . . . . 2 . . . . 4 . 6 . . . . 2 . . . . 2 . 1 . . . . . Prioritize 7 | . . . . . . . . . . . . . . . . . 1 . 2 . . . . 2 . . . . 2 . . . . . . . Recompile 12 | . . . . . . . 2 . . . . 2 . . . . 3 . 4 . . . . . . . . . . . 1 . . . . . Repair Stations . | . . . . . . . . . . . . . . . . . . . . . . . . . . . . . . . . . . . . . Recycling Units . | . . . . . . . . . . . . . . . . . . . . . . . . . . . . . . . . . . . . . Scanalyzers . | . . . . . . . . . . . . . . . . . . . . . . . . . . . . . . . . . . . . . Garrison Access . | . . . . . . . . . . . . . . . . . . . . . . . . . . . . . . . . . . . . . Data Cores Recovered 2 | . . . . . . . . . . . . 1 . . . . . . . . . . . . . . . . 1 . . . . . . . Used . | . . . . . . . . . . . . . . . . . . . . . . . . . . . . . . . . . . . . . Hacking Detections 142 | . 10 1 . 11 11 . 24 . . . . 11 5 . . 8 14 . 11 . . . . 11 . . . . 6 5 2 4 4 2 2 . Full Trace Events 9 | . . . . 1 . . 3 . . . . . . . . . 1 . . . . . . 2 . . . . 2 . . . . . . . Feedback Events 1 | . . . . . . . 1 . . . . . . . . . . . . . . . . . . . . . . . . . . . . . Corruption 1 | . . . . . . . 1 . . . . . . . . . . . . . . . . . . . . . . . . . . . . . Feedback Blocked . | . . . . . . . . . . . . . . . . . . . . . . . . . . . . . . . . . . . . . Robot Schematics Acquired 5 | . . . . . . . . . . 4 . . . . . . . . . . . . . 1 . . . . . . . . . . . . Robots Built . | . . . . . . . . . . . . . . . . . . . . . . . . . . . . . . . . . . . . . Authchips . | . . . . . . . . . . . . . . . . . . . . . . . . . . . . . . . . . . . . . Time . | . . . . . . . . . . . . . . . . . . . . . . . . . . . . . . . . . . . . . Total Robot Build Rating . | . . . . . . . . . . . . . . . . . . . . . . . . . . . . . . . . . . . . . Part Schematics Acquired 35 | . 3 . . 3 1 . . . . 8 . 1 . . . . 5 . 7 . . . . 2 . . 4 . 1 . . . . . . . Parts Built 21 | . . . . . . . . . . . . 2 . . . . 6 . 2 . . . . 8 . . . . 2 . . 1 . . . . Authchips 11 | . . . . . . . . . . . . . . . . . 4 . 2 . . . . 4 . . . . . . . 1 . . . . Time 800 | . . . . . . . . . . . . 106 . . . . 97 . 219 . . . . 259 . . . . 69 . . 50 . . . . Total Part Build Rating 138 | . . . . . . . . . . . . 12 . . . . 36 . 15 . . . . 58 . . . . 12 . . 5 . . . . Parts Repaired 20 | . 1 . . . 1 . 1 . . . . 3 . . . . 2 . 3 . . . . 8 . . . . . 1 . . . . . . Time 756 | . 26 . . . 25 . 35 . . . . 92 . . . . 50 . 130 . . . . 318 . . . . . 80 . . . . . . Parts Recycled . | . . . . . . . . . . . . . . . . . . . . . . . . . . . . . . . . . . . . . Recycled Matter 87 | . . . . . . . . . . . . . . . . . . . . . . . . 87 . . . . . . . . . . . . Retrieved Matter 87 | . . . . . . . . . . . . . . . . . . . . . . . . 87 . . . . . . . . . . . . Retrieved Components 48 | . 21 . . 9 1 . 3 . . . . 1 . . . . . . 4 . . . . 8 . . . . 1 . . . . . . . Parts Scanalyzed 4 | . . . . 1 1 . . . . . . . . . . . . . 1 . . . . 1 . . . . . . . . . . . . Part Schematics Acquired 4 | . . . . 1 1 . . . . . . . . . . . . . 1 . . . . 1 . . . . . . . . . . . . Parts Damaged . | . . . . . . . . . . . . . . . . . . . . . . . . . . . . . . . . . . . . . Bothacking | -11 -10 -10 -10 -8 -7 -7 -7 -7 -7 -7 -6 -6 -6 -6 -6 -6 -5 -5 -5 -5 -5 -5 -4 -4 -4 -4 -4 -3 -3 -3 -2 -2 -2 -1 -1 -1 ------------ Run | Yrd Mat Min Sub Mat Fac Was Fac Low Low Dat Pro Fac Ext Cet Arc Hub Fac Was Fac Upp Upp War Pro Fac Upp Upp Zhi Pro Res Qua Res Tes Sec Acc Com Ac0 Used RIF Installer . | . . . . . . . . . . . . . . . . . . . . . . . . . . . . . . . . . . . . . Robots Hacked . | . . . . . . . . . . . . . . . . . . . . . . . . . . . . . . . . . . . . . Non-combat . | . . . . . . . . . . . . . . . . . . . . . . . . . . . . . . . . . . . . . Combat . | . . . . . . . . . . . . . . . . . . . . . . . . . . . . . . . . . . . . . Robot Hacks Applied . | . . . . . . . . . . . . . . . . . . . . . . . . . . . . . . . . . . . . . Relay Couplers Released 4 | . . . . . . . . . . . . . . . . . . . . . . . . . . . . . . . 4 . . . . . Machine Destruction 4 | . . . . . . . . . . . . . . . . . . . . . . . . . . . . . . . 4 . . . . . Fabnet Peak Effective % . | . . . . . . . . . . . . . . . . . . . . . . . . . . . . . . . . . . . . . Robots Rewired 17 | . . . . . . . . . . . . . 17 . . . . . . . . . . . . . . . . . . . . . . . Allies Hacked . | . . . . . . . . . . . . . . . . . . . . . . . . . . . . . . . . . . . . . Hacks Repelled . | . . . . . . . . . . . . . . . . . . . . . . . . . . . . . . . . . . . . . Allies | -11 -10 -10 -10 -8 -7 -7 -7 -7 -7 -7 -6 -6 -6 -6 -6 -6 -5 -5 -5 -5 -5 -5 -4 -4 -4 -4 -4 -3 -3 -3 -2 -2 -2 -1 -1 -1 -------- Run | Yrd Mat Min Sub Mat Fac Was Fac Low Low Dat Pro Fac Ext Cet Arc Hub Fac Was Fac Upp Upp War Pro Fac Upp Upp Zhi Pro Res Qua Res Tes Sec Acc Com Ac0 Total Allies 79 | . . 2 . . 1 20 1 . . . . . 22 5 . 2 1 19 . . . . . 2 . . . . . . 4 . . . . . Largest Group 20 | . . 2 . . 1 20 2 . . . . . 15 19 17 13 1 19 4 . . . . 1 . . . . . . 4 . . . . . Highest-Rated Group 1033 | . . 42 . . 10 547 20 . . . . . 577 1033 941 652 96 702 121 . . . . 26 . . . . . . 384 . . . . . Highest-Rated Ally 159 | . . 31 . . 10 35 14 . . . . . 159 159 137 96 96 50 46 . . . . 26 . . . . . . 96 . . . . . Total Orders 20 | . . . . . . . . . . . 3 . 6 8 2 1 . . . . . . . . . . . . . . . . . . . . STAY 14 | . . . . . . . . . . . 2 . 4 6 1 1 . . . . . . . . . . . . . . . . . . . . FOLLOW 6 | . . . . . . . . . . . 1 . 2 2 1 . . . . . . . . . . . . . . . . . . . . . Ally Attacks 439 | . . 6 . . . 12 6 . . . . . 82 24 38 106 9 69 20 . . . . . . . . . . . 67 . . . . . Total Damage 11771 | . . 105 . . . 279 71 . . . . . 2044 1165 693 2628 255 2146 241 . . . . . . . . . . . 2144 . . . . . Kills 66 | . . 1 . . . 1 . . . . . . 18 6 5 20 2 5 . . . . . . . . . . . . 8 . . . . . Allies Corrupted 3 | . . . . . . . . . . . . . . . . 1 1 . . . . . . . . . . . . . 1 . . . . . Allies Melted 4 | . . . . . . . . . . . . . . . . 1 . . . . . 1 . . . . . . . . 2 . . . . . Intel | -11 -10 -10 -10 -8 -7 -7 -7 -7 -7 -7 -6 -6 -6 -6 -6 -6 -5 -5 -5 -5 -5 -5 -4 -4 -4 -4 -4 -3 -3 -3 -2 -2 -2 -1 -1 -1 ------- Run | Yrd Mat Min Sub Mat Fac Was Fac Low Low Dat Pro Fac Ext Cet Arc Hub Fac Was Fac Upp Upp War Pro Fac Upp Upp Zhi Pro Res Qua Res Tes Sec Acc Com Ac0 Active Infowar (turns) 31098 | . 1335 916 . 1152 1204 268 889 1173 724 143 312 1257 2226 375 545 627 2176 368 1296 751 173 875 682 1375 546 318 223 1010 865 1896 1703 921 1633 633 18 490 Optics 12563 | . . . . 1152 1204 268 889 1173 724 143 312 1257 2226 375 545 627 1668 . . . . . . . . . . . . . . . . . . . Sensors 26233 | . . . . . 1092 268 889 1132 701 134 311 1237 2111 375 295 627 2082 368 1296 751 173 875 682 1375 546 318 223 1004 775 1887 1612 868 1593 633 . . Terrain 8383 | . . . . . . 39 . 8 . 9 1 . 40 . . 218 . . . . . . . . . . . 495 828 1609 1701 893 1418 616 18 490 Seismic 2253 | . 1335 916 . . . . . . . . . . . . . . . . . . . . . 2 . . . . . . . . . . . . Machine Analysis 831 | . . . . 460 371 . . . . . . . . . . . . . . . . . . . . . . . . . . . . . . . Cloaking 1 | . . . . . . . . . . . . . . . . . . . . . . 1 . . . . . . . . . . . . . . Robot Analysis Total 13 | . 1 . . . . . . . . . . . . . . . . . 1 . . . . 5 . . 4 . 2 . . . . . . . Derelict Logs Recovered 14 | . . 1 . . . . . 2 1 . 2 . . . . . . . . 2 2 . 1 . 3 . . . . . . . . . . . Drone Launches 2 | . . . . . . . . . . . 2 . . . . . . . . . . . . . . . . . . . . . . . . . Drone Recoveries . | . . . . . . . . . . . . . . . . . . . . . . . . . . . . . . . . . . . . . Exploration | -11 -10 -10 -10 -8 -7 -7 -7 -7 -7 -7 -6 -6 -6 -6 -6 -6 -5 -5 -5 -5 -5 -5 -4 -4 -4 -4 -4 -3 -3 -3 -2 -2 -2 -1 -1 -1 ------------- Run | Yrd Mat Min Sub Mat Fac Was Fac Low Low Dat Pro Fac Ext Cet Arc Hub Fac Was Fac Upp Upp War Pro Fac Upp Upp Zhi Pro Res Qua Res Tes Sec Acc Com Ac0 Turns Passed 38992 | 98 1549 1382 790 1597 1204 268 889 1173 724 143 312 1257 2226 375 545 627 2176 368 1348 779 200 922 695 1384 546 318 224 1010 883 1907 1709 1056 1779 1159 4620 750 Spaces Moved 32144 | 56 1125 842 602 819 1638 301 1685 1676 1156 116 472 1595 1796 267 340 631 2326 461 1488 992 275 904 737 1485 462 259 176 683 626 985 933 430 867 322 2297 319 Core 8 | 1 . . . . . . . . . . . . . . . . . . . . . . . . . . . . . . . . . . . 7 Treads 4574 | . . . . . . . . . . . . . . . . . . . . . . . . . . . . . . . 346 430 867 322 2297 312 Legs 4002 | . . . . . . . . . . . . . . . . . . . . . . . . 224 462 259 176 683 626 985 587 . . . . . Wheels 3382 | 55 1125 842 602 758 . . . . . . . . . . . . . . . . . . . . . . . . . . . . . . . . Hover 20178 | . . . . 61 1638 301 1685 1676 1156 116 472 1595 1796 267 340 631 2326 461 1488 992 275 904 737 1261 . . . . . . . . . . . . Flight . | . . . . . . . . . . . . . . . . . . . . . . . . . . . . . . . . . . . . . Fastest Speed 34 | 50 90 115 115 90 34 34 34 34 36 36 40 40 65 65 65 65 58 58 53 58 58 46 46 35 97 97 102 102 105 106 105 152 150 150 138 50 Average Speed 79 | 99 100 115 115 115 40 43 34 34 36 36 40 52 65 65 65 65 59 58 58 58 64 52 50 57 97 98 102 102 105 157 166 153 150 150 142 140 Slowest Speed 305 | 100 115 115 115 170 94 102 34 36 96 40 40 129 65 65 65 65 122 58 121 58 65 130 118 129 97 102 102 105 106 170 305 232 152 150 220 143 Overloaded Moves 4 | . . . . . . . . . . . . . . . . . . . . . . . . 4 . . . . . . . . . . . . Propulsion Burnouts . | . . . . . . . . . . . . . . . . . . . . . . . . . . . . . . . . . . . . . Robots Hopped . | . . . . . . . . . . . . . . . . . . . . . . . . . . . . . . . . . . . . . Potential Cave-ins . | . . . . . . . . . . . . . . . . . . . . . . . . . . . . . . . . . . . . . Cave-ins Triggered . | . . . . . . . . . . . . . . . . . . . . . . . . . . . . . . . . . . . . . Teleports 3 | . . . . . . . . . . . . . . . . . . . . . . . . . . . . . . . 1 . . . 1 1 Exploration Rate (%) 59 | 4 98 100 29 64 39 96 51 92 95 80 55 42 87 67 99 64 49 96 38 91 41 89 65 34 57 48 60 44 18 77 37 43 45 15 69 28 Regions Visited 36 Branch Regions 23 Pre-discovered Areas 9 | . . 1 . . . . . . 1 1 . . . . . . . . . 1 1 . . . 1 . 3 . . . . . . . . . Known Exits Taken 27 | . 1 . . . . . 1 1 1 1 1 1 1 1 1 1 . . 1 1 1 1 1 1 1 1 1 1 1 1 1 1 1 1 . . Unknown Exits Taken 5 | 1 . 1 1 1 . . . . . . . . . . . . . . . . . . . . . . . . . . . . . . 1 . Scrap Searched 23 | . . 1 2 . . . . 3 2 . 4 . . . . . . . . 5 1 . . . 1 2 . 2 . . . . . . . . Spaces Dug 613 | . . . . 7 20 . 25 26 38 3 8 31 8 . . 23 56 1 46 9 . 3 13 28 4 10 . 1 15 7 6 38 37 41 15 94 Terrain Destroyed 2307 | . . . . 11 29 2 28 103 46 6 11 42 52 26 . 199 99 3 76 66 25 163 120 72 7 19 . 101 19 36 29 133 170 84 169 361 Melee 132 | . . . . . . . 20 11 10 3 3 22 . . . 3 14 . 4 . . . 2 18 . . . . . . 2 3 9 2 6 . Projectile 522 | . . . . 9 29 2 8 22 8 3 8 20 15 . . 34 66 3 72 23 . 3 23 17 5 19 . 2 19 15 7 6 14 16 13 41 AOE 1653 | . . . . 2 . . . 70 28 . . . 37 26 . 162 19 . . 43 25 160 95 37 2 . . 99 . 21 20 124 147 66 150 320 Terrain Rammed . | . . . . . . . . . . . . . . . . . . . . . . . . . . . . . . . . . . . . . Walls Destroyed . | . . . . . . . . . . . . . . . . . . . . . . . . . . . . . . . . . . . . . Machines Disabled . | . . . . . . . . . . . . . . . . . . . . . . . . . . . . . . . . . . . . . Actions | -11 -10 -10 -10 -8 -7 -7 -7 -7 -7 -7 -6 -6 -6 -6 -6 -6 -5 -5 -5 -5 -5 -5 -4 -4 -4 -4 -4 -3 -3 -3 -2 -2 -2 -1 -1 -1 --------- Run | Yrd Mat Min Sub Mat Fac Was Fac Low Low Dat Pro Fac Ext Cet Arc Hub Fac Was Fac Upp Upp War Pro Fac Upp Upp Zhi Pro Res Qua Res Tes Sec Acc Com Ac0 Total 43352 | 77 1502 1224 677 1182 2110 422 1927 2186 1414 200 573 1927 2775 457 630 798 2978 544 1860 1155 290 1295 1020 1947 546 303 206 976 822 1276 1064 762 1224 969 3522 512 Wait 8048 | 2 282 351 51 101 359 105 136 423 215 64 73 227 832 177 244 101 466 68 237 109 1 257 221 360 51 19 . 252 121 179 48 224 171 574 934 13 Move 32109 | 55 1124 841 601 818 1638 300 1684 1675 1155 115 471 1594 1795 266 339 630 2326 460 1487 991 274 903 736 1484 461 258 175 682 625 984 932 429 866 321 2296 318 Hop . | . . . . . . . . . . . . . . . . . . . . . . . . . . . . . . . . . . . . . Pick Up 296 | 5 29 4 3 16 7 2 4 1 . 1 3 7 6 2 5 2 24 1 13 3 1 9 3 12 7 2 5 3 10 15 8 15 16 4 40 8 Fast Attach 139 | 6 3 . 1 16 . . 4 . . 1 1 9 . . 2 . 4 . 5 2 . 12 3 5 1 . 2 2 2 6 5 3 17 2 20 5 Attach 169 | . . 2 . 11 9 . . 1 . 3 1 4 . . . . 7 . 4 3 4 8 5 8 2 2 . 4 2 7 2 11 22 5 25 17 Detach 117 | . 2 . . 5 4 . 1 . . . . . . . 2 . 1 . 1 2 2 13 4 4 2 . 2 4 . 5 1 6 19 4 22 11 Swap 492 | . 11 2 6 31 24 6 3 20 9 2 4 17 17 . 11 6 27 4 16 8 4 19 7 22 8 1 5 8 17 26 27 18 32 14 35 25 Drop 346 | . 24 3 4 23 6 2 8 2 . 2 2 11 5 2 5 3 17 1 11 4 . 23 6 4 3 2 7 5 15 11 21 18 21 4 59 12 Fire 1302 | 9 27 21 11 161 63 7 38 48 24 6 15 28 56 10 2 38 81 8 77 32 4 51 30 24 11 19 . 16 26 43 18 33 48 39 76 102 Melee 230 | . . . . . . . 23 16 11 6 3 30 . . 20 4 25 2 9 1 . . 5 24 . . 10 . 4 . 2 5 12 2 15 1 Ram . | . . . . . . . . . . . . . . . . . . . . . . . . . . . . . . . . . . . . . Kick . | . . . . . . . . . . . . . . . . . . . . . . . . . . . . . . . . . . . . . Crush . | . . . . . . . . . . . . . . . . . . . . . . . . . . . . . . . . . . . . . Escape Stasis 37 | . . . . . . . 26 . . . . . . . . 11 . . . . . . . . . . . . . . . . . . . . Rewire 64 | . . . . . . . . . . . . . 64 . . . . . . . . . . . . . . . . . . . . . . . Trap . | . . . . . . . . . . . . . . . . . . . . . . . . . . . . . . . . . . . . . Miscellaneous 3 | . . . . . . . . . . . . . . . . 3 . . . . . . . . . . . . . . . . . . . . Route ------- -11/Scrapyard -10/Materials (discovered 4 exits: [*Mat x3] / *Min) -10/Mines (discovered 4 exits: [*Mat x2] / [*Exi] / *Sub) -10/Subcaves -8/Materials -7/Factory (discovered 3 exits: *Fac x2 / *Low) -7/Waste -7/Factory (discovered 5 exits: *Fac x3 / *Low x2) -7/Lower Caves -7/Lower Caves (discovered 2 exits: *Fac / *Dat) -7/Data Miner -6/Proximity Caves -6/Factory (discovered 4 exits: Fac / *Low x2 / *Ext) -6/Extension (discovered 2 exits: *Fac / *Cet) -6/Cetus (discovered 2 exits: *Fac / *Arc) -6/Archives (discovered 3 exits: *Fac / *Hub x2) -6/Hub_04(d) (discovered 4 exits: *Fac x4) -5/Factory (discovered 3 exits: *Fac / Upp x2) -5/Waste -5/Factory (discovered 4 exits: *Fac x2 / *Upp x2) -5/Upper Caves -5/Upper Caves -5/Warlord -4/Proximity Caves -4/Factory (discovered 2 exits: *Upp x2) -4/Upper Caves -4/Upper Caves -4/Zhirov -3/Proximity Caves -3/Research (discovered 6 exits: *Res x3 / Arm / *Qua x2) -3/Quarantine -2/Research (discovered 2 exits: *Acc / *Tes) -2/Testing (discovered 2 exits: *Sec / [*Frg]) -2/Section 7 -1/Access -1/Command (discovered 3 exits: [*Sur x2] / [*Ac0]) -1/Access_0 Near Former Tau Ceti IV History --------- Turn | Location | Event 24 | -11/Scrapyard | Discovered new exit (range 15) 99 | -11/Scrapyard | Entered Materials 303 | -10/Materials | Discovered new exit (range 15) 307 | -10/Materials | Build established: Mutant 676 | -10/Materials | Identified exit to Mines 901 | -10/Materials | Discovered new exit (range 16) 1485 | -10/Materials | Discovered new exit (range 11) 1539 | -10/Materials | Repaired Ion Engine 1648 | -10/Materials | Entered Mines 1710 | -10/Mines | Learned location of Mines (-9) 1808 | -10/Mines | A weapon hastily lodged in a ceiling crevice suddenly fell to the ground 1951 | -10/Mines | Assembled infested the area 1978 | -10/Mines | Discovered new exit (range 5) 2420 | -10/Mines | Discovered new exit (range 11) 2515 | -10/Mines | Discovered new exit (range 5) 2714 | -10/Mines | Discovered new exit (range 7) 3030 | -10/Mines | Entered Subcaves 3031 | -10/Subcaves | Approached by a straggling Scientist 3073 | -10/Subcaves | Shifting Twisted Machinery released Sub. Monowheel 3164 | -10/Subcaves | Shifting Twisted Machinery released Sub. Monowheel 3277 | -10/Subcaves | Core integrity fell below 50% 3314 | -10/Subcaves | A swath of the cavern ceiling suddenly collapsed 3465 | -10/Subcaves | Discovered new exit (range 11) 3570 | -10/Subcaves | Shifting Twisted Machinery released Sub. Laser 3571 | -10/Subcaves | Shifting Twisted Machinery released Sub. Optics 3684 | -10/Subcaves | Visited 4L-MR0's lab 3714 | -10/Subcaves | Found Power Bank 3820 | -10/Subcaves | Entered Materials 3820 | -8/Materials | Evolved 4 slots: Propulsion x2, Utility x2 4130 | -8/Materials | Lost 7 parts (3n2u2w) 4233 | -8/Materials | Discovered new exit (range 11) 4335 | -8/Materials | Lost 3 parts (2n1w) 4781 | -8/Materials | Build established: Scavenger-Mutant 4863 | -8/Materials | Core integrity fell below 50% 4921 | -8/Materials | Destroyed 7 combat bots 4938 | -8/Materials | Lost 5 parts (1p2n2u) 5162 | -8/Materials | Garrison activated, responded to threat 5275 | -8/Materials | Garrison activated, responded to threat 5349 | -8/Materials | Build established: Mutant 5417 | -8/Materials | Entered Factory 5417 | -7/Factory | Evolved 2 slots: Propulsion x1, Utility x1 5571 | -7/Factory | Discovered new exit (range 4) 6035 | -7/Factory | Repaired Cmb. Airjet 6133 | -7/Factory | Discovered new exit (range 11) 6259 | -7/Factory | Build established: Scout 6605 | -7/Factory | Discovered new exit (range 15) 6609 | -7/Factory | Identified exit to Factory 6621 | -7/Factory | Sucked down chute 6621 | -7/Factory | Entered Waste 6622 | -7/Waste | Joined by Warlord forces that had cleared the area 6711 | -7/Waste | A Compactor rumbled back to life 6711 | -7/Waste | Spotted C-40 Crusher 6720 | -7/Waste | Allies destroyed C-40 Crusher 6750 | -7/Waste | Discovered new exit (range 12) 6889 | -7/Waste | Identified exit to Factory 6889 | -7/Waste | Entered Factory 6889 | -7/Factory | Accompanied by 1 ally 7048 | -7/Factory | Discovered exit to Factory (range 15) 7089 | -7/Factory | Repaired Broken Power Sword 7124 | -7/Factory | Discovered exit to Factory (range 20) 7578 | -7/Factory | Discovered exit to Factory (range 9) 7645 | -7/Factory | Identified exit to Lower Caves 7778 | -7/Factory | Entered Lower Caves 8141 | -7/Lower Caves | Ambushed by wild Derelicts 8214 | -7/Lower Caves | Learned Factory stockpile data 8251 | -7/Lower Caves | Learned 8 Factory zone layouts 8735 | -7/Lower Caves | Spotted B-75 Beast 8866 | -7/Lower Caves | Discovered new exit (range 12) 8872 | -7/Lower Caves | Identified exit to Lower Caves 8914 | -7/Lower Caves | Found DCF Scrap (11 items) 8951 | -7/Lower Caves | Entered another Lower Caves area 9164 | -7/Lower Caves | Discovered exit to Factory (range 7) 9517 | -7/Lower Caves | Discovered new exit (range 12) 9523 | -7/Lower Caves | Identified exit to Data Miner 9544 | -7/Lower Caves | Learned location of Extension (-6) 9675 | -7/Lower Caves | Entered Data Miner 9677 | -7/Data Miner | Discovered new exit (range 6) 9688 | -7/Data Miner | Met Data Miner 9697 | -7/Data Miner | Learned location of Section 7 (-2) 9697 | -7/Data Miner | Acquired the access code to Warlord's prototype stash 9704 | -7/Data Miner | Received God Mode back door access code from Data Miner 9713 | -7/Data Miner | Data Conduit disabled 9818 | -7/Data Miner | Identified exit to Proximity Caves 9818 | -7/Data Miner | Entered Proximity Caves 10033 | -6/Proximity Caves | Spotter reported a threat 10101 | -6/Proximity Caves | Learned 4 Factory zone layouts 10105 | -6/Proximity Caves | Discovered exit to Factory (range 8) 10130 | -6/Proximity Caves | Entered Factory 10130 | -6/Factory | Evolved 2 slots: Utility x2 10131 | -6/Factory | Identified exit to Extension 10132 | -6/Factory | Identified exit to Factory 10132 | -6/Factory | Identified exit to Lower Caves 10445 | -6/Factory | Build established: Hacker-Scout 10448 | -6/Factory | Fabricated Imp. Plasma Cutter? 10528 | -6/Factory | Discovered exit to Lower Caves (range 20) 10609 | -6/Factory | Repaired Insulated Plating 10931 | -6/Factory | Repaired Insulated Plating? 11005 | -6/Factory | Repaired Broken Gravmag Array 11387 | -6/Factory | Entered Extension 11625 | -6/Extension | Rescued a captive Derelict 11625 | -6/Extension | Rescued a captive Derelict 12064 | -6/Extension | Rescued A7 12480 | -6/Extension | Build established: Commander-Scout 13030 | -6/Extension | Spotted B-75 Beast 13043 | -6/Extension | Spotted B-75 Beast 13045 | -6/Extension | Allies destroyed B-75 Beast 13052 | -6/Extension | Destroyed B-75 Beast 13076 | -6/Extension | Rescued a captive Derelict 13404 | -6/Extension | Rescued a captive Derelict 13505 | -6/Extension | Discovered exit to Factory (range 10) 13506 | -6/Extension | Discovered new exit (range 6) 13521 | -6/Extension | Identified exit to Cetus 13613 | -6/Extension | Entered Cetus 13613 | -6/Cetus | Accompanied by 15 allies (A7) 13618 | -6/Cetus | Acquired a Cetus Manufacturing Module code from A7 13635 | -6/Cetus | Spotted Cetus Guard 13635 | -6/Cetus | Spotted Cetus Guard 13635 | -6/Cetus | Spotted Cetus Guard 13639 | -6/Cetus | Spotted Cetus Guard 13639 | -6/Cetus | Allies destroyed Cetus Guard 13642 | -6/Cetus | Destroyed Cetus Guard 13644 | -6/Cetus | Allies destroyed Cetus Guard 13647 | -6/Cetus | Allies destroyed Cetus Guard 13679 | -6/Cetus | Started Cetus Manufacturing Module 13685 | -6/Cetus | Discovered new exit (range 20) 13704 | -6/Cetus | Manufactured an Enhanced Grunt 13729 | -6/Cetus | Manufactured an Enhanced Grunt 13754 | -6/Cetus | Manufactured an Enhanced Grunt 13779 | -6/Cetus | Manufactured an Enhanced Grunt 13804 | -6/Cetus | Manufactured an Enhanced Grunt 13885 | -6/Cetus | Spotted Cetus Guard 13885 | -6/Cetus | Spotted Cetus Guard 13886 | -6/Cetus | Spotted Cetus Guard 13889 | -6/Cetus | Spotted Cetus Guard 13891 | -6/Cetus | Allies destroyed Cetus Guard 13893 | -6/Cetus | Allies destroyed Cetus Guard 13895 | -6/Cetus | Destroyed Cetus Guard 13897 | -6/Cetus | Allies destroyed Cetus Guard 13898 | -6/Cetus | Discovered exit to Factory (range 20) 13907 | -6/Cetus | Met Revision 17 13949 | -6/Cetus | Identified exit to Archives 13988 | -6/Cetus | Entered Archives 13988 | -6/Archives | Accompanied by 17 allies (A7) 14058 | -6/Archives | Discovered new exit (range 15) 14084 | -6/Archives | Lost 4 allies 14131 | -6/Archives | Discovered exit to Factory (range 14) 14155 | -6/Archives | Discovered new exit (range 15) 14475 | -6/Archives | Identified exit to Hub_04(d) 14533 | -6/Archives | Entered Hub_04(d) 14533 | -6/Hub_04(d) | Accompanied by 11 allies 15083 | -6/Hub_04(d) | Network Hub disabled 15104 | -6/Hub_04(d) | Network Hub disabled 15160 | -6/Hub_04(d) | Entered Factory 15160 | -5/Factory | Accompanied by 1 ally 15160 | -5/Factory | Evolved 2 slots: Propulsion x1, Utility x1 15561 | -5/Factory | Build established: Hacker-Scout 15704 | -5/Factory | Repaired Cmb. Airjet 15731 | -5/Factory | Repaired Cmb. Airjet 16129 | -5/Factory | Discovered new exit (range 6) 16132 | -5/Factory | Identified exit to Factory 16159 | -5/Factory | Identified exit to Upper Caves 16197 | -5/Factory | Fabricated Adv. Hacking Suite? 16268 | -5/Factory | Fabricated Weapon Mount? 16307 | -5/Factory | Cargo convoy interrupted 16826 | -5/Factory | Fabricated Lrn. Sensor Array (x2) 16861 | -5/Factory | Fabricated Prc. Energy Filter (x1) 17106 | -5/Factory | Build established: Hacker-Mutant 17194 | -5/Factory | Central database locked down 17336 | -5/Factory | Manually triggered Chute Trap 17336 | -5/Factory | Sucked down chute 17336 | -5/Factory | Entered Waste 17351 | -5/Waste | 1 allies followed down the chute 17421 | -5/Waste | Spotted C-40 Crusher 17428 | -5/Waste | Spotted C-40 Crusher 17439 | -5/Waste | Spotted C-40 Crusher 17472 | -5/Waste | Spotted C-40 Crusher 17483 | -5/Waste | Spotted C-40 Crusher 17489 | -5/Waste | Warlord forces began an assault 17493 | -5/Waste | Allies destroyed C-40 Crusher 17524 | -5/Waste | Destroyed C-40 Crusher 17524 | -5/Waste | Destroyed C-40 Crusher 17526 | -5/Waste | Spotted C-40 Crusher 17530 | -5/Waste | Allies destroyed C-40 Crusher 17536 | -5/Waste | Destroyed C-40 Crusher 17598 | -5/Waste | Discovered new exit (range 12) 17703 | -5/Waste | Identified exit to Factory 17704 | -5/Waste | Entered Factory 17704 | -5/Factory | Accompanied by 4 allies 17792 | -5/Factory | Repaired Adv. KE Penetrator 17823 | -5/Factory | Repaired Cmb. Airjet? 17830 | -5/Factory | Repaired KE Penetrator? 18214 | -5/Factory | Discovered exit to Factory (range 20) 18310 | -5/Factory | Fabricated Gamma Bomb Array? 18533 | -5/Factory | Build established: Wizard-Mutant 18965 | -5/Factory | Discovered exit to Factory (range 10) 19010 | -5/Factory | Fabricated Exp. Signal Interpreter (x1) 19052 | -5/Factory | Entered Upper Caves 19525 | -5/Upper Caves | Found Alien Artifact 19525 | -5/Upper Caves | Identified Core Expander 19525 | -5/Upper Caves | Installed Core Expander, added new Utility slot 19550 | -5/Upper Caves | Identified exit to Upper Caves 19647 | -5/Upper Caves | Found DCF Scrap (13 items) 19658 | -5/Upper Caves | Learned location of Armory (-3) 19782 | -5/Upper Caves | Encountered a Warlord checkpoint 19831 | -5/Upper Caves | Entered another Upper Caves area 19837 | -5/Upper Caves | Spotted B-75 Beast 19882 | -5/Upper Caves | Lost 4 parts (1p2n1w) 19984 | -5/Upper Caves | Learned Factory emergency access door positions 19993 | -5/Upper Caves | Discovered new exit (range 4) 19999 | -5/Upper Caves | Identified exit to Warlord 20031 | -5/Upper Caves | Entered Warlord 20053 | -5/Warlord | System corruption cleaned by Quarantine Array 20100 | -5/Warlord | Met Warlord 20125 | -5/Warlord | Warlord's base attacked by MAIN.C 20166 | -5/Warlord | Opened Warlord's prototype stash 20208 | -5/Warlord | Found Prototype Hackware 20210 | -5/Warlord | Identified System Mapper 20213 | -5/Warlord | Found Prototype Device 20219 | -5/Warlord | Identified Exp. Cloaking Device 20231 | -5/Warlord | Attached Power Bank, gained temporary slots: Power x3 20250 | -5/Warlord | Found Prototype Reactor 20345 | -5/Warlord | Learned Quarantine emergency access door positions 20346 | -5/Warlord | Learned 4 Armory zone layouts 20346 | -5/Warlord | Learned Armory fabricator intel 20432 | -5/Warlord | Destroyed 10 combat bots 20467 | -5/Warlord | Spotted Executioner 20475 | -5/Warlord | Warlord forces counterattacked 20557 | -5/Warlord | Lost 14 allies 20575 | -5/Warlord | Spotted Striker 20588 | -5/Warlord | Destroyed Striker 20611 | -5/Warlord | Destroyed 8 combat bots 20632 | -5/Warlord | Spotted Striker 20800 | -5/Warlord | Warlord base infiltrated, sounded retreat 20831 | -5/Warlord | Destroyed 11 combat bots 20840 | -5/Warlord | Destroyed Executioner 20896 | -5/Warlord | Discovered new exit (range 12) 20930 | -5/Warlord | Spotted Striker 20952 | -5/Warlord | Identified exit to Proximity Caves 20953 | -5/Warlord | Entered Proximity Caves 20965 | -4/Proximity Caves | Lost 6 allies 21024 | -4/Proximity Caves | Spotter reported a threat 21640 | -4/Proximity Caves | Discovered exit to Factory (range 8) 21642 | -4/Proximity Caves | Learned Research emergency access door positions 21648 | -4/Proximity Caves | Entered Factory 21648 | -4/Factory | Evolved 2 slots: Utility x2 21694 | -4/Factory | Discovered new exit (range 15) 21718 | -4/Factory | Identified exit to Upper Caves 21749 | -4/Factory | Central database locked down 21834 | -4/Factory | Garrison activated, responded to threat 21982 | -4/Factory | Repaired Gamma Bomb Array? 22054 | -4/Factory | Identified Vortex Chain Reactor 22230 | -4/Factory | Fabricated Exp. Utility Shielding (x1) 22233 | -4/Factory | Repaired Cmb. Linear Gravjet? 22270 | -4/Factory | Fabricated Lrn. Terrain Scanner (x2) 22281 | -4/Factory | Repaired Prc. Energy Filter? 22329 | -4/Factory | Fabricated Exp. Terrain Scan Processor (x1) 22331 | -4/Factory | Repaired Prc. Energy Filter? 22390 | -4/Factory | Repaired Cld. Antigrav System 22391 | -4/Factory | Fabricated Gamma Bomb Array? 22578 | -4/Factory | Repaired Cmb. Gravmag System 22609 | -4/Factory | Repaired Cmb. Gravmag System? 22610 | -4/Factory | Repaired Adv. KE Penetrator 22679 | -4/Factory | Fabricated Adv. Component Analysis Suite (x2) 22715 | -4/Factory | Fabricated Enh. Biometal Leg (x1) 23032 | -4/Factory | Entered Upper Caves 23096 | -4/Upper Caves | Entered an active Warlord outpost 23104 | -4/Upper Caves | Learned location of 1 exit from Factory 23104 | -4/Upper Caves | Learned location of 1 exit from Research 23104 | -4/Upper Caves | Learned Extension trap positions 23174 | -4/Upper Caves | Learned Research non-interactive machine intel 23182 | -4/Upper Caves | Learned location of 1 exit from Research 23315 | -4/Upper Caves | Encountered a Warlord checkpoint 23562 | -4/Upper Caves | Discovered new exit (range 16) 23574 | -4/Upper Caves | Identified exit to Upper Caves 23578 | -4/Upper Caves | Entered another Upper Caves area 23889 | -4/Upper Caves | Discovered new exit (range 6) 23894 | -4/Upper Caves | Identified exit to Zhirov 23896 | -4/Upper Caves | Entered Zhirov 23896 | -4/Zhirov | Discovered new exit (range 3) 23915 | -4/Zhirov | Met Zhirov 23938 | -4/Zhirov | Learned location of Quarantine (-3) 23938 | -4/Zhirov | Learned location of Testing (-2) 23938 | -4/Zhirov | Learned location of Command (-1) 23944 | -4/Zhirov | Zhirov requested help retrieving the SGEMP Prototype 24055 | -4/Zhirov | Found Alien Artifact 24068 | -4/Zhirov | Found Alien Artifact 24068 | -4/Zhirov | Identified Integrated Dissipator 24068 | -4/Zhirov | Installed Integrated Dissipator, increased core heat dissipation (+20) 24115 | -4/Zhirov | Identified exit to Proximity Caves 24120 | -4/Zhirov | Entered Proximity Caves 24941 | -3/Proximity Caves | Build established: Wizard-Skirmisher 25038 | -3/Proximity Caves | Snuck into a huge 0b10 base via the rear entrance 25119 | -3/Proximity Caves | Discovered new exit (range 10) 25127 | -3/Proximity Caves | Identified exit to Research 25129 | -3/Proximity Caves | System corruption reached 10% 25130 | -3/Proximity Caves | Entered Research 25130 | -3/Research | Evolved 2 slots: Power x1, Utility x1 25131 | -3/Research | Identified exit to Quarantine 25132 | -3/Research | Identified exit to Research 25132 | -3/Research | Identified exit to Armory 25134 | -3/Research | Loaded intel: 88 non-interactive machine locations 25328 | -3/Research | Central database locked down 25330 | -3/Research | Revision forces began assault on 0b10 25342 | -3/Research | Met up with Revision 17++ 25396 | -3/Research | Fabricated Adv. EM Shield? 25560 | -3/Research | Build established: Wizard-Assassin 25745 | -3/Research | Identified Transdimensional Reconstructor 25829 | -3/Research | Fabricated Hvy. Reactive Plating (x1) 25830 | -3/Research | Research terminal network offline 25901 | -3/Research | Found Unknown Launcher 25901 | -3/Research | Identified Fusion Bomb Launcher 25981 | -3/Research | Build established: Wizard-Skirmisher 26013 | -3/Research | Entered Quarantine 26037 | -3/Quarantine | Cryocooling Duct disabled 26052 | -3/Quarantine | Ambient heat levels rising (+20) 26052 | -3/Quarantine | Non-combat units ordered to evacuate 26097 | -3/Quarantine | Cryocooling Duct disabled 26112 | -3/Quarantine | Ambient heat levels rising (+20) 26112 | -3/Quarantine | Combat units ordered to evacuate 26121 | -3/Quarantine | Found Alien Artifact 26151 | -3/Quarantine | Found Quantum Capacitor 26212 | -3/Quarantine | Quarantine Guard activated 26219 | -3/Quarantine | Identified Phase Armor 26542 | -3/Quarantine | Build established: Machinist-Skirmisher 26554 | -3/Quarantine | Spotted Quarantine Guard 26604 | -3/Quarantine | Destroyed Quarantine Guard 26616 | -3/Quarantine | Spotted Quarantine Guard 26623 | -3/Quarantine | Destroyed Quarantine Guard 26695 | -3/Quarantine | Spotted Quarantine Guard 26701 | -3/Quarantine | Destroyed Quarantine Guard 26719 | -3/Quarantine | Spotted Quarantine Guard 26735 | -3/Quarantine | Destroyed Quarantine Guard 26781 | -3/Quarantine | Found Alien Artifact 26799 | -3/Quarantine | Spotted Quarantine Guard 26821 | -3/Quarantine | Spotted Quarantine Guard 26821 | -3/Quarantine | Spotted Quarantine Guard 26824 | -3/Quarantine | Destroyed Quarantine Guard 26835 | -3/Quarantine | Destroyed Quarantine Guard 26838 | -3/Quarantine | Destroyed Quarantine Guard 26922 | -3/Quarantine | Spotted Quarantine Guard 26930 | -3/Quarantine | Destroyed Quarantine Guard 27073 | -3/Quarantine | Repaired Exp. Utility Shielding 27133 | -3/Quarantine | Found Prototype Device 27150 | -3/Quarantine | Identified Exp. Thermal Defense Suite 27439 | -3/Quarantine | Found Alien Slashing Weapon 27498 | -3/Quarantine | Spotted Quarantine Guard 27506 | -3/Quarantine | Destroyed Quarantine Guard 27564 | -3/Quarantine | Discovered exit to Research (range 24) 27581 | -3/Quarantine | Found Alien Artifact 27746 | -3/Quarantine | Identified Sigix Broadsword 27884 | -3/Quarantine | Spotted Quarantine Guard 27909 | -3/Quarantine | Spotted Alpha 7 27920 | -3/Quarantine | Entered Research 27920 | -2/Research | Warlord forces began assault on 0b10 27920 | -2/Research | Evolved 2 slots: Weapon x2 28030 | -2/Research | Research machine network offline 28041 | -2/Research | Met up with Warlord 28069 | -2/Research | Spotted WG-YLZ(K) 28136 | -2/Research | Discovered new exit (range 20) 28215 | -2/Research | Build established: Machinist-Assassin 28266 | -2/Research | Found Prototype Launcher 28283 | -2/Research | Identified Enh. Gamma Bomb Array 28317 | -2/Research | Spotted Striker 28354 | -2/Research | Found Prototype Device 28362 | -2/Research | Identified Exp. Thermal Shield 28411 | -2/Research | Borebot progress halted 28695 | -2/Research | Spotted Striker 28702 | -2/Research | Destroyed Striker 28921 | -2/Research | Warlord invited to help at Command 28921 | -2/Research | Given Cave Seal Controls access code 28924 | -2/Research | Borebot progress halted 29285 | -2/Research | Found Prototype Processor 29314 | -2/Research | Spotted Striker 29327 | -2/Research | Spotted Executioner 29333 | -2/Research | Identified exit to Access 29370 | -2/Research | Lost 6 allies 29383 | -2/Research | Spotted Executioner 29385 | -2/Research | Identified Exp. Core Analyzer 29393 | -2/Research | Spotted Executioner 29396 | -2/Research | Destroyed Executioner 29401 | -2/Research | Spotted Striker 29402 | -2/Research | Attacked by Warlord forces 29402 | -2/Research | Spotted 9S-VN2(K) 29404 | -2/Research | Attacked by Warlord 29404 | -2/Research | Warped through subspace 29419 | -2/Research | Spotted 6C-IBW(K) 29534 | -2/Research | Spotted 1O-A5Z(K) 29586 | -2/Research | Discovered new exit (range 22) 29616 | -2/Research | Identified exit to Testing 29629 | -2/Research | Entered Testing 29720 | -2/Testing | Found Prototype Energy Cannon 29726 | -2/Testing | Identified Potential Cannon 29732 | -2/Testing | Fabricated Exp. Utility Shielding? 29847 | -2/Testing | Garrison activated, responded to threat 29893 | -2/Testing | Destroyed 7 combat bots 30359 | -2/Testing | Discovered exit to Access (range 22) 30410 | -2/Testing | Spotted Fortress 30534 | -2/Testing | Discovered new exit (range 5) 30534 | -2/Testing | Discovered new exit (range 6) 30539 | -2/Testing | Identified exit to Section 7 30598 | -2/Testing | Identified Core Reset Matrix 30598 | -2/Testing | Identified Subatomic Replicator 30598 | -2/Testing | Used Core Reset Matrix 30685 | -2/Testing | Entered Section 7 30686 | -2/Section 7 | Detected hypermatrix surge 30686 | -2/Section 7 | Sensed 24 artifacts in vicinity 30714 | -2/Section 7 | Found Integrated Mediator 30714 | -2/Section 7 | Installed Integrated Mediator, increased core attachment efficiency 30784 | -2/Section 7 | Found Integrity Redistributor 31103 | -2/Section 7 | Discovered exit to Access (range 21) 31146 | -2/Section 7 | Used Subatomic Replicator to replicate Integrity Redistributor 31380 | -2/Section 7 | Used Integrity Redistributor, redistributed integrity from core (-235) 31393 | -2/Section 7 | Spotted S7 Guard 31423 | -2/Section 7 | Destroyed S7 Guard 31449 | -2/Section 7 | Found Core Membrane 31449 | -2/Section 7 | Installed Core Membrane, gained immunity to corruption 31565 | -2/Section 7 | Spotted Executioner 31568 | -2/Section 7 | Spotted Executioner 31570 | -2/Section 7 | Destroyed Executioner 31571 | -2/Section 7 | Destroyed Executioner 31652 | -2/Section 7 | Found Transdimensional Reconstructor 31772 | -2/Section 7 | Build established: Alien-Assassin 31935 | -2/Section 7 | First assault squad dispatched 31964 | -2/Section 7 | Found Integrated Dissipator 31964 | -2/Section 7 | Installed Integrated Dissipator, increased core heat dissipation (+20) 31967 | -2/Section 7 | Found Integrated Dissipator 31967 | -2/Section 7 | Installed Integrated Dissipator, increased core heat dissipation (+20) 32018 | -2/Section 7 | Found LRC Storage 32018 | -2/Section 7 | Installed LRC Storage, increased inventory capacity (+2) 32027 | -2/Section 7 | Found LRC Matter Compressor 32027 | -2/Section 7 | Installed LRC Matter Compressor, increased matter storage capacity (+125) 32030 | -2/Section 7 | Found LRC Inertial Stabilizer 32030 | -2/Section 7 | Installed LRC Inertial Stabilizer, increased mass support (+10) 32464 | -2/Section 7 | Entered Access 32464 | -1/Access | Evolved 2 slots: Utility x2 32791 | -1/Access | Destroyed 7 combat bots 32857 | -1/Access | Identified exit to Command 32964 | -1/Access | First assault squad dispatched 33384 | -1/Access | Build established: Alien-Mutant 33623 | -1/Access | Entered Command 33631 | -1/Command | Spotted B-99 Colossus 33660 | -1/Command | Destroyed B-99 Colossus 34535 | -1/Command | Spotted B-99 Colossus 34623 | -1/Command | First assault squad dispatched 34713 | -1/Command | Destroyed 8 combat bots 34784 | -1/Command | Spotted Combat Programmer 34785 | -1/Command | Spotted Combat Programmer 34794 | -1/Command | Spotted M Guard 34798 | -1/Command | Destroyed Combat Programmer 34800 | -1/Command | Destroyed Combat Programmer 34810 | -1/Command | Spotted M Guard 34821 | -1/Command | Destroyed M Guard 34822 | -1/Command | Destroyed M Guard 34822 | -1/Command | All MAIN.C guards destroyed 34850 | -1/Command | Found Corrupted Prototype Device 34850 | -1/Command | Identified Thermal Barrier 34856 | -1/Command | Found Corrupted Prototype Device 34856 | -1/Command | Identified AEGIS Remote Shield 34870 | -1/Command | Found Corrupted Prototype Reactor 34870 | -1/Command | Identified Zero-point Reactor 34901 | -1/Command | Found Corrupted Zero-point Reactor 34922 | -1/Command | Found Corrupted Zero-point Reactor 35077 | -1/Command | Met MAIN.C 35080 | -1/Command | 0b10 Conduit disabled 35084 | -1/Command | Destroyed MAIN.C Shell 35086 | -1/Command | MAIN.C activated Command garrisons 35132 | -1/Command | Destroyed MAIN.C 35170 | -1/Command | Discovered new exit (range 31) 35170 | -1/Command | Discovered new exit (range 96) 35170 | -1/Command | Extracted map data and part IDs from MAIN.C's data core 35173 | -1/Command | Destroyed 8 combat bots 35434 | -1/Command | Found Vortex Chain Reactor 35498 | -1/Command | Found Zero-point Reactor 36988 | -1/Command | Found Enh. Gamma Bomb Array 37417 | -1/Command | Found Corrupted Ragnarok Missile Launcher 37447 | -1/Command | Found Corrupted Hvy. Regenerative Plating 38009 | -1/Command | Warped through subspace to slip node 38009 | -1/Command | Discovered new exit (range 5) 38012 | -1/Command | Found Z-bomb Delivery System 38243 | -1/Command | Entered Access_0 38244 | -1/Access_0 | Sensed 4 artifacts in vicinity 38246 | -1/Access_0 | Met Architect 38251 | -1/Access_0 | Architect warped through subspace 38259 | -1/Access_0 | Destroyed A8 38273 | -1/Access_0 | Used Integrity Redistributor, redistributed integrity from core (-334) 38307 | -1/Access_0 | Architect warped through subspace 38337 | -1/Access_0 | Subspace Access Node disabled 38383 | -1/Access_0 | Architect warped through subspace 38448 | -1/Access_0 | A6 warped into view 38455 | -1/Access_0 | Destroyed A6 38478 | -1/Access_0 | Architect warped through subspace 38544 | -1/Access_0 | Subspace Access Node disabled 38556 | -1/Access_0 | Architect warped through subspace 38636 | -1/Access_0 | Architect warped through subspace 38698 | -1/Access_0 | Subspace Access Node disabled 38721 | -1/Access_0 | Architect warped through subspace 38744 | -1/Access_0 | Architect warped through subspace 38758 | -1/Access_0 | Found Core Regenerator 38768 | -1/Access_0 | Architect warped through subspace 38787 | -1/Access_0 | Architect warped through subspace 38799 | -1/Access_0 | Core integrity fell below 50% 38800 | -1/Access_0 | Architect warped through subspace 38813 | -1/Access_0 | Architect warped through subspace 38823 | -1/Access_0 | A5 warped into view 38876 | -1/Access_0 | Destroyed A5 38886 | -1/Access_0 | Subspace Access Node disabled 38932 | -1/Access_0 | Found Hpw. Transdimensional Reconstructor 38987 | -1/Access_0 | Destroyed Architect 38988 | -1/Access_0 | Architect triggered a singularity event 38988 | -1/Access_0 | Warped through subspace to slip node 38988 | -1/Access_0 | Discovered new exit (range 8) 38989 | -1/Access_0 | Used Core Regenerator, restored core integrity (+400) 38990 | -1/Access_0 | Released all parts (18) 38993 | *** | Escaped singularity! Last Messages --------------- 38990_ Released Graphene Brace. 38990_ Released Exp. Biometal Heavy Treads. 38990_ Released Imp. Armor Integrity Analyzer. 38990_ Released Exp. Core Analyzer. 38990_ Released Huge Storage Unit. 38990_ Enh. Hardcell Cannon crushed and broken. 38990_ Enh. Gamma Bomb Array crushed and broken. 38990_ Released Prc. Energy Filter. 38990_ Released Exp. Biometal Heavy Treads. 38990_ Exp. Biometal Heavy Treads crushed and broken. 38990_ Released Adv. Heavy Siege Treads. 38990_ Adv. Heavy Siege Treads crushed and broken. 38990_ Released Vortex Chain Reactor. 38990_ Vortex Chain Reactor crushed and broken. 38990_ Released Graviton Cannon. 38990_ Graviton Cannon crushed and broken. 38991_ A0_COM: 8. 38992_ A0_COM: 7. 38993_ A0_COM: 6. [Achievement: Planet Killer] Map ----- +----------------------------------------------------+ | | | | | | | | | | | | | | | | | | | | | | | | | | | | | | | | | ?????????????????????????????????????????????????? | | ?????????????????????????????????????????????????? | | ?????????????????????????????????????????????????? | | ?????????????????????????????????????????????????? | | ?????????????????????????????????????????????????? | | ?????????????????????????????????????????????????? | | ????????????????????????###??????????????????????? | | ???????????????????????## ##?????????????????????? | | ???????????????????????# #?????????????????????? | | ???????????????????????# @ #?????????????????????? | | ??????????????????????## #?????????????????????? | | ??????????????????????# ] #?????????????????????? | | ??????????????????????#]!]##?????????????????????? | | ??????????????????????##!!!#?????????????????????? | | ??????????????????????#!!!!#?????????????????????? | | ??????????????????????#!]!##?????????????????????? | | ??????????????????????#!!]!#?????????????????????? | | ??????????????????????#!!!##?????????????????????? | | ??????????????????????##=!#??????????????????????? | | ???????????????????????####??????????????????????? | | ?????????????????????????????????????????????????? | | ?????????????????????????????????????????????????? | | ?????????????????????????????????????????????????? | | ?????????????????????????????????????????????????? | | ?????????????????????????????????????????????????? | | ?????????????????????????????????????????????????? | | ?????????????????????????????????????????????????? | | ?????????????????????????????????????????????????? | | ?????????????????????????????????????????????????? | | ?????????????????????????????????????????????????? | | ?????????????????????????????????????????????????? | | ?????????????????????????????????????????????????? | | ?????????????????????????????????????????????????? | | ?????????????????????????????????????????????????? | +----------------------------------------------------+ Best States ------------- Heat Dissipation 112 Coolant Potential 220 Energy Generation 75 Energy Capacity 1300 Matter Stores 640 Matter Capacity 925 Sight Range 20 Robot Scan Range 18 Terrain Scan Range 24 Terrain Scan Density 1010 Cloak Strength 4 Power Amplification 40 Armor Coverage 1200 Resistance: KI 40 Resistance: TH 50 Resistance: EM 50 Power Shielding 90 Utility Shielding 90 Point Defense Rating 480 Phase Shifting 15 Evasion (%) 70 Targeting Accuracy 20 Core Analysis 8 Armor Integrity Analysis 40 Recoil Reduction 6 Energy Filtering 75 Offensive Hacking 88 Defensive Hacking 14 Authchip Count 4 Item Schematics ----------------- None Robot Schematics ------------------ None Fabricated ------------ Imp. Plasma Cutter | x2 | -6/Factory | Preloaded Adv. Hacking Suite | x1 | -5/Factory | Authchip Weapon Mount | x2 | -5/Factory | Authchip Lrn. Sensor Array | x2 | -5/Factory | Authchip Prc. Energy Filter | x1 | -5/Factory | Authchip Gamma Bomb Array | x1 | -5/Factory | Authchip Exp. Signal Interpreter | x1 | -5/Factory | Authchip Exp. Utility Shielding | x1 | -4/Factory | Authchip Lrn. Terrain Scanner | x2 | -4/Factory | Authchip Exp. Terrain Scan Processor | x1 | -4/Factory | Authchip Gamma Bomb Array | x1 | -4/Factory Adv. Component Analysis Suite | x2 | -4/Factory | Authchip Enh. Biometal Leg | x1 | -4/Factory Adv. EM Shield | x1 | -3/Research Hvy. Reactive Plating | x1 | -3/Research Exp. Utility Shielding | x1 | -2/Testing | Authchip Repaired ---------- Ion Engine | 26% | -10/Materials Cmb. Airjet | 44% | -7/Factory Power Sword | 15% | -7/Factory | Broken Insulated Plating | 15% | -6/Factory Insulated Plating | 3% | -6/Factory Gravmag Array | 31% | -6/Factory | Broken Cmb. Airjet | 46% | -5/Factory Cmb. Airjet | 58% | -5/Factory Adv. KE Penetrator | 51% | -5/Factory Cmb. Airjet | 74% | -5/Factory KE Penetrator | 67% | -5/Factory Gamma Bomb Array | 20% | -4/Factory Cmb. Linear Gravjet | 23% | -4/Factory Prc. Energy Filter | 50% | -4/Factory Prc. Energy Filter | 73% | -4/Factory Cld. Antigrav System | 44% | -4/Factory Cmb. Gravmag System | 68% | -4/Factory Cmb. Gravmag System | 73% | -4/Factory Adv. KE Penetrator | 60% | -4/Factory Exp. Utility Shielding | 46% | -3/Quarantine Alien Tech Used ----------------- Core Expander Integrated Dissipator Sigix Broadsword Transdimensional Reconstructor Core Reset Matrix Integrated Mediator Subatomic Replicator Integrity Redistributor Core Membrane LRC Storage LRC Matter Compressor LRC Inertial Stabilizer High-powered Transdimensional Reconstructor Core Regenerator Achievements -------------- Planet Killer The Bigger They Are Challenges ------------ None Game ------ Seed AmuletSuperdenseCore Manual? 0 Play Time 09:48:01 Cumulative 476.1 hours Start 2025.08.29 @ 00:13:03 End 2025.08.29 @ 18:21:42 Sessions 5 Manual Loads 0 Difficulty Rogue Special Mode None Game No. 223 Rogue 223 Adventurer 0 Explorer 0 Win Type 6 Total 6 Types 5/0/0/0/0/0/1/0/0/0 Lore% 65 Gallery% 72 Achievement% 64 Wizard Run 0 Options --------- Layout 0 ASCII 0 Keyboard 1 Movement Vi Keybinds 0 Fullscreen 2 Font 18/SmallcapsGlow Map View 76x50 Zoom Use 0% Tactical HUD 1 Map Filters NONE Filters NONE Steam 1 RUN: cdba22fd-4cb1-4dfe-8d4d-cba1432e3bd7